Workbook

Sheet Title Page
D2: Mobile TeleSystems
B5: Contents
B7: 1. MTS Group statement of profit or loss
B8: 2. MTS Group statement of financial position
B9: 3. MTS Group statement of cash flows
B10: 4. MTS Russia highlights
B11: 5. MTS Armenia highlights
B12: 6. MTS Turkmenistan highlights
B13: 7. MTS Belarus highlights
B14: 8. Group reconciliations
B15: 9. Debt repayment schedule
B16: 10. Average Forex rates
B17: Glossary of terms
B20: Disclaimer

Sheet Statement of profit or loss
B2: MOBILE TELESYSTEMS (NYSE: MBT)
B3: CONDENSED UNAUDITED CONSOLIDATED STATEMENTS OF PROFIT OR LOSS
C4: 2018 | H4: 2019 | M4: 2020
B5: (Amounts in millions of RUB, except share and per share amounts) | C5: Q1 | D5: Q2 | E5: Q3 | F5: Q4 | G5: Full year | H5: Q1 | I5: Q2 | J5: Q3 | K5: Q4 | L5: Full year | M5: Q1 | N5: Q2 | O5: Q3
B8: Service revenue | C8: 89009 | D8: 93124 | E8: 99948 | F8: 100616 | G8: 382698 | H8: 95994 | I8: 100606 | J8: 104820 | K8: 105419 | L8: 406839 | M8: 102948 | N8: 103321 | O8: 108604
B9: Sales of goods | C9: 13063 | D9: 14041 | E9: 20258 | F9: 21406 | G9: 68768 | H9: 13839 | I9: 15559 | J9: 18225 | K9: 21644 | L9: 69267 | M9: 16660 | N9: 14409 | O9: 20444
B10: Total revenue | C10: 102072 | D10: 107165 | E10: 120206 | F10: 122022 | G10: 451466 | H10: 109833 | I10: 116165 | J10: 123045 | K10: 127063 | L10: 476106 | M10: 119608 | N10: 117730 | O10: 129048
B12: Cost of services | C12: -23302 | D12: -25062 | E12: -28250 | F12: -28314 | G12: -104929 | H12: -27556 | I12: -29104 | J12: -29032 | K12: -29303 | L12: -114995 | M12: -29544 | N12: -30712 | O12: -30966
B13: Cost of goods | C13: -11382 | D13: -13287 | E13: -18980 | F13: -19603 | G13: -63253 | H13: -12664 | I13: -14879 | J13: -17000 | K13: -19346 | L13: -63889 | M13: -15165 | N13: -13383 | O13: -18399
B14: Selling, general and administrative expenses | C14: -18724 | D14: -20885 | E14: -20503 | F14: -23314 | G14: -83427 | H14: -20892 | I14: -22203 | J14: -22433 | K14: -25268 | L14: -90796 | M14: -22447 | N14: -20267 | O14: -21543
B15: Depreciation and amortization | C15: -23394 | D15: -24020 | E15: -24046 | F15: -23926 | G15: -95386 | H15: -23598 | I15: -24155 | J15: -24058 | K15: -24468 | L15: -96279 | M15: -24701 | N15: -24651 | O15: -25353
B16: Other operating income / (expenses) | C16: -565 | D16: 713 | E16: 1382 | F16: -631 | G16: 900 | H16: 972 | I16: 118 | J16: 811 | K16: -2591 | L16: -690 | M16: -2000 | N16: -2971 | O16: -913
B17: Operating share of the profit of associates | C17: 750 | D17: 1085 | E17: 974 | F17: 989 | G17: 3799 | H17: 1033 | I17: 1169 | J17: 1298 | K17: 1083 | L17: 4583 | M17: 1092 | N17: 1167 | O17: 1314
B18: Impairment of non-current assets | C18: 0 | D18: 0 | E18: 0 | F18: -149 | G18: -149 | H18: 0 | I18: 0 | J18: 0 | K18: 148 | L18: 148 | M18: -319 | N18: -929 | O18: 21
B20: Operating profit | C20: 25455 | D20: 25709 | E20: 30783 | F20: 27074 | G20: 109021 | H20: 27128 | I20: 27111 | J20: 32631 | K20: 27318 | L20: 114188 | M20: 26524 | N20: 25984 | O20: 33209
B22: Finance income | C22: 1136 | D22: 1182 | E22: 1298 | F22: 1971 | G22: 5587 | H22: 1591 | I22: 1110 | J22: 923 | K22: 732 | L22: 4356 | M22: 778 | N22: 1189 | O22: 685
B23: Finance costs | C23: -9338 | D23: -8829 | E23: -7117 | F23: -11704 | G23: -36988 | H23: -10950 | I23: -12072 | J23: -12585 | K23: -11761 | L23: -47368 | M23: -10309 | N23: -10935 | O23: -9911
B24: Other income / (expenses) | C24: 1894 | D24: -1850 | E24: -875 | F24: 330 | G24: -501 | H24: -836 | I24: -1512 | J24: 960 | K24: -2915 | L24: -4303 | M24: 5154 | N24: -1573 | O24: 243
B26: Profit before tax | C26: 19147 | D26: 16212 | E26: 24089 | F26: 17671 | G26: 77119 | H26: 16933 | I26: 14637 | J26: 21929 | K26: 13374 | L26: 66873 | M26: 22147 | N26: 14665 | O26: 24226
B28: Income tax expense | C28: -4579 | D28: -3472 | E28: -5943 | F28: -1401 | G28: -15395 | H28: -3744 | I28: -3146 | J28: -5677 | K28: -3183 | L28: -15750 | M28: -4629 | N28: -4604 | O28: -5673
B30: Profit for the period from continuing operations | C30: 14568 | D30: 12740 | E30: 18146 | F30: 16270 | G30: 61724 | H30: 13189 | I30: 11491 | J30: 16252 | K30: 10191 | L30: 51123 | M30: 17518 | N30: 10061 | O30: 18553
B32: Profit / (loss) after tax for the period from discontinued operation | C32: 960 | D32: 1686 | E32: -54495 | F32: -2043 | G32: -53892 | H32: 4634 | I32: 1380 | J32: 2415 | K32: -4453 | L32: 3976 | M32: 398 | N32: 1838 | O32: 440
B34: Profit/(loss) for the period | C34: 15528 | D34: 14426 | E34: -36349 | F34: 14227 | G34: 7832 | H34: 17823 | I34: 12871 | J34: 18667 | K34: 5738 | L34: 55099 | M34: 17916 | N34: 11899 | O34: 18993
B36: Attributable to:
B37: Owners of the Company
B38: Profit / (loss) for the period from continuing operations | C38: 14461 | D38: 12597 | E38: 17477 | F38: 16205 | G38: 60740 | H38: 12962 | I38: 11326 | J38: 15979 | K38: 9998 | L38: 50265 | M38: 17342 | N38: 9915 | O38: 18380
B39: Profit / (loss) for the period from discontinued operation | C39: 960 | D39: 1686 | E39: -54495 | F39: -2043 | G39: -53892 | H39: 4634 | I39: 1380 | J39: 2415 | K39: -4453 | L39: 3976 | M39: 398 | N39: 1838 | O39: 440
B40: Profit/(loss) for the period attributable to owners of the Company | C40: 15421 | D40: 14283 | E40: -37018 | F40: 14162 | G40: 6848 | H40: 17596 | I40: 12706 | J40: 18394 | K40: 5545 | L40: 54241 | M40: 17740 | N40: 11753 | O40: 18820
B41: Non-controlling interests
B42: Profit for the period from continuing operations | C42: 107 | D42: 143 | E42: 669 | F42: 65 | G42: 984 | H42: 227 | I42: 165 | J42: 273 | K42: 193 | L42: 858 | M42: 176 | N42: 146 | O42: 173
B43: Profit / (loss) for the period from discontinued operation | C43: 0 | D43: 0 | E43: 0 | F43: 0 | G43: 0 | H43: 0 | I43: 0 | J43: 0 | K43: 0 | L43: 0 | M43: 0 | N43: 0 | O43: 0
B44: Profit for the period attributable to non-controlling interests | C44: 107 | D44: 143 | E44: 669 | F44: 65 | G44: 984 | H44: 227 | I44: 165 | J44: 273 | K44: 193 | L44: 858 | M44: 176 | N44: 146 | O44: 173
B46: Weighted average number of common shares outstanding, in thousands - basic | C46: 1894606 | D46: 1886217 | E46: 1876421 | F46: 1837425 | G46: 1873563 | H46: 1803301 | I46: 1775144 | J46: 1772885 | K46: 1772834 | L46: 1780935 | M46: 1772872 | N46: 1775872 | O46: 1768850
B47: Earnings per share attributable to the Group - basic
B48: EPS from continuing operations | C48: 7.63 | D48: 6.68 | E48: 9.31 | F48: 8.82 | G48: 32.42 | H48: 7.19 | I48: 6.38 | J48: 9.01 | K48: 5.64 | L48: 28.22 | M48: 9.78 | N48: 5.58 | O48: 10.39
B49: EPS from discontinued operation | C49: 0.51 | D49: 0.89 | E49: -29.04 | F49: -1.11 | G49: -28.76 | H49: 2.57 | I49: 0.78 | J49: 1.36 | K49: -2.51 | L49: 2.23 | M49: 0.22 | N49: 1.04 | O49: 0.25
B50: Total EPS | C50: 8.14 | D50: 7.57 | E50: -19.73 | F50: 7.71 | G50: 3.66 | H50: 9.76 | I50: 7.16 | J50: 10.37 | K50: 3.13 | L50: 30.45 | M50: 10 | N50: 6.62 | O50: 10.64
B52: Weighted average number of common shares outstanding, in thousands - diluted | C52: 1896110 | D52: 1888336 | E52: 1878142 | F52: 1839147 | G52: 1875721 | H52: 1806020 | I52: 1777557 | J52: 1774499 | K52: 1774448 | L52: 1783617 | M52: 1775359 | N52: 1776964 | O52: 1769693
B53: Earnings per share attributable to the Group - diluted
B54: EPS from continuing operations | C54: 7.63 | D54: 6.67 | E54: 9.31 | F54: 8.81 | G54: 32.38 | H54: 7.18 | I54: 6.37 | J54: 9 | K54: 5.63 | L54: 28.18 | M54: 9.77 | N54: 5.58 | O54: 10.39
B55: EPS from discontinued operation | C55: 0.51 | D55: 0.89 | E55: -29.02 | F55: -1.11 | G55: -28.73 | H55: 2.57 | I55: 0.78 | J55: 1.36 | K55: -2.51 | L55: 2.23 | M55: 0.22 | N55: 1.03 | O55: 0.25
B56: Total EPS | C56: 8.14 | D56: 7.56 | E56: -19.71 | F56: 7.7 | G56: 3.65 | H56: 9.75 | I56: 7.15 | J56: 10.36 | K56: 3.12 | L56: 30.41 | M56: 9.99 | N56: 6.61 | O56: 10.64
B58: Adjusted OIBDA** | C58: 48849 | D58: 49729 | E58: 54829 | F58: 51149 | G58: 204556 | H58: 50726 | I58: 51266 | J58: 56689 | K58: 51638 | L58: 210319 | M58: 51544 | N58: 51564 | O58: 58541
B59: Adjusted OIBDA margin | C59: 0.479 | D59: 0.464 | E59: 0.456 | F59: 0.419 | G59: 0.453 | H59: 0.462 | I59: 0.441 | J59: 0.461 | K59: 0.406 | L59: 0.442 | M59: 0.431 | N59: 0.438 | O59: 0.454
B61: * Data were retrospectively adjusted on discontinued operation in Uzbekistan
B62: **Adjusted OIBDA for 4Q 2018 and 2018 doesn't include a loss from impairment of non-current assets of RUB 149 mln. Adjusted OIBDA for 4Q 2019 and 2019 doesn't include a reversal of impairment of non-current assets of RUB 148 mln. Adjusted OIBDA for 1Q 2020, 2Q2020 doesn't include a loss from impairment of non-current assets of RUB 319 mln, RUB 929 mln, respectively. Adjusted OIBDA for 3Q 2020 doesn't include a reversal of impairment of non-current assets of RUB 21 mln. Adjusted OIBDA for 2020 doesn't include a loss from impairment of non-current assets of RUB 1 227 mln

Sheet Statement of financial position
B2: MOBILE TELESYSTEMS (NYSE: MBT)
B3: CONDENSED UNAUDITED CONSOLIDATED STATEMENTS OF FINANCIAL POSITION
C4: 2018 | G4: 2019 | K4: 2020
B5: (Amounts in millions of RUB, except share amounts) | C5: Mar 31 | D5: Jun 30 | E5: Sep 30 | F5: Dec 31 | G5: Mar 31 | H5: Jun 30 | I5: Sep 30 | J5: Dec 31 | K5: Mar 31 | L5: Jun 30 | M5: Sep 30
B6: NON-CURRENT ASSETS:
B7: Property, plant and equipment | C7: 251944 | D7: 256472 | E7: 268493 | F7: 276443 | G7: 273276 | H7: 276530 | I7: 281187 | J7: 265479 | K7: 265507 | L7: 267873 | M7: 271877
B8: Investment property | C8: 420 | D8: 732 | E8: 5392 | F8: 2177 | G8: 2056 | H8: 2798 | I8: 3433 | J8: 2986 | K8: 2765 | L8: 2596 | M8: 2461
B9: Right-of-use assets | C9: 146011 | D9: 150211 | E9: 148588 | F9: 149007 | G9: 149458 | H9: 149530 | I9: 148095 | J9: 138817 | K9: 138826 | L9: 133872 | M9: 131404
B10: Intangible assets | C10: 126298 | D10: 129582 | E10: 129002 | F10: 135069 | G10: 132289 | H10: 133947 | I10: 134782 | J10: 118404 | K10: 120269 | L10: 120306 | M10: 123414
B11: Investments in associates | C11: 9466 | D11: 11432 | E11: 10475 | F11: 10735 | G11: 5503 | H11: 5629 | I11: 6632 | J11: 6450 | K11: 8467 | L11: 8432 | M11: 8739
B12: Deferred tax assets | C12: 6569 | D12: 6509 | E12: 9767 | F12: 11190 | G12: 11552 | H12: 12404 | I12: 13237 | J12: 9975 | K12: 10479 | L12: 9985 | M12: 10469
B13: Income tax assets | C13: 0 | D13: 0 | E13: 0 | F13: 0 | G13: 0 | H13: 0 | I13: 0 | J13: 0 | K13: 0 | L13: 0 | M13: 0
B14: Other non-financial assets | C14: 1748 | D14: 1583 | E14: 1660 | F14: 5038 | G14: 5173 | H14: 4910 | I14: 5290 | J14: 4981 | K14: 4989 | L14: 5338 | M14: 5540
B15: Other investments | C15: 1948 | D15: 2073 | E15: 19200 | F15: 16873 | G15: 16924 | H15: 15576 | I15: 14534 | J15: 11195 | K15: 11031 | L15: 11007 | M15: 11180
B16: Accounts receivable, related parties | C16: 2 | D16: 1127 | E16: 2 | F16: 2545 | G16: 14154 | H16: 14226 | I16: 11854 | J16: 10787 | K16: 10924 | L16: 11064 | M16: 8399
B17: Bank loans to customers and interbank loans due from banks | E17: 27347 | F17: 30653 | G17: 32889 | H17: 39954 | I17: 47025 | J17: 53472 | K17: 52972 | L17: 53390 | M17: 59035
B18: Other financial assets | C18: 5057 | D18: 4623 | E18: 3072 | F18: 7329 | G18: 6532 | H18: 5266 | I18: 5734 | J18: 6776 | K18: 13540 | L18: 9452 | M18: 11417
B19: Total non-current assets | C19: 549463 | D19: 564344 | E19: 622998 | F19: 647059 | G19: 649806 | H19: 660770 | I19: 671803 | J19: 629322 | K19: 639769 | L19: 633315 | M19: 643935
B21: CURRENT ASSETS:
B22: Inventories | C22: 13318 | D22: 17307 | E22: 19832 | F22: 18654 | G22: 16678 | H22: 14622 | I22: 16499 | J22: 15515 | K22: 14778 | L22: 18067 | M22: 15970
B23: Trade and other receivables | C23: 27914 | D23: 30001 | E23: 27251 | F23: 34543 | G23: 35513 | H23: 37015 | I23: 37984 | J23: 35595 | K23: 38232 | L23: 36591 | M23: 36787
B24: Accounts receivable, related parties | C24: 12704 | D24: 12469 | E24: 11312 | F24: 6385 | G24: 7686 | H24: 5486 | I24: 8315 | J24: 5872 | K24: 6708 | L24: 5308 | M24: 6919
B25: Bank loans to customers and interbank loans due from banks | E25: 37083 | F25: 32385 | G25: 32715 | H25: 35933 | I25: 38922 | J25: 39370 | K25: 48524 | L25: 44371 | M25: 49281
B26: Short-term investments | C26: 26354 | D26: 52970 | E26: 46354 | F26: 47863 | G26: 26588 | H26: 15165 | I26: 15700 | J26: 25618 | K26: 27886 | L26: 25994 | M26: 26547
B27: VAT receivable | C27: 6859 | D27: 9060 | E27: 9233 | F27: 7415 | G27: 8525 | H27: 9335 | I27: 11088 | J27: 9350 | K27: 9685 | L27: 10504 | M27: 9830
B28: Income tax assets | C28: 3504 | D28: 2594 | E28: 2417 | F28: 3887 | G28: 1847 | H28: 5949 | I28: 2560 | J28: 4301 | K28: 8837 | L28: 3371 | M28: 3215
B29: Assets held for sale | C29: 1416 | D29: 1461 | E29: 1262 | F29: 2694 | G29: 1085 | H29: 663 | I29: 623 | J29: 497 | K29: 422 | L29: 493 | M29: 331
B30: Advances paid and prepaid expenses, contract and other non-financial current assets | C30: 3616 | D30: 4694 | E30: 4551 | F30: 5546 | G30: 4625 | H30: 4679 | I30: 5179 | J30: 5842 | K30: 5113 | L30: 5149 | M30: 5456
B31: Other financial current assets | E31: 24059 | F31: 25487 | G31: 18957 | H31: 22757 | I31: 21068 | J31: 14558 | K31: 23084 | L31: 21028 | M31: 23405
B32: Cash and cash equivalents | C32: 56923 | D32: 57292 | E32: 101144 | F32: 84075 | G32: 66346 | H32: 51243 | I32: 52518 | J32: 38070 | K32: 101163 | L32: 98253 | M32: 82649
B33: Total current assets | C33: 152608 | D33: 187848 | E33: 284498 | F33: 268934 | G33: 220565 | H33: 202847 | I33: 210456 | J33: 194588 | K33: 284432 | L33: 269129 | M33: 260390
B35: Total assets | C35: 702071 | D35: 752192 | E35: 907496 | F35: 915993 | G35: 870371 | H35: 863617 | I35: 882259 | J35: 823910 | K35: 924201 | L35: 902444 | M35: 904325
B37: EQUITY:
B38: Equity attributable to owners of the Company* | C38: 131608 | D38: 109268 | E38: 59742 | F38: 65274 | G38: 65958 | H38: 36722 | I38: 43574 | J38: 33068 | K38: 54065 | L38: 27137 | M38: 26451
B39: Non-controlling interests | C39: 4206 | D39: 3242 | E39: 12300 | F39: 12291 | G39: 4766 | H39: 3816 | I39: 4073 | J39: 3326 | K39: 3494 | L39: 3641 | M39: 3825
B40: Total equity | C40: 135814 | D40: 112510 | E40: 72042 | F40: 77565 | G40: 70724 | H40: 40538 | I40: 47647 | J40: 36394 | K40: 57559 | L40: 30778 | M40: 30276
B42: NON-CURRENT LIABILITIES:
B43: Borrowings | C43: 218400 | D43: 249836 | E43: 362082 | F43: 365072 | G43: 343966 | H43: 308245 | I43: 277209 | J43: 271573 | K43: 387862 | L43: 396560 | M43: 391435
B44: Lease obligation | C44: 135327 | D44: 141472 | E44: 142223 | F44: 144740 | G44: 147741 | H44: 147722 | I44: 146698 | J44: 140080 | K44: 142059 | L44: 137099 | M44: 136164
B45: Deferred tax liabilities | C45: 24405 | D45: 23856 | E45: 25754 | F45: 24439 | G45: 21528 | H45: 21085 | I45: 21670 | J45: 17866 | K45: 21684 | L45: 20129 | M45: 20764
B46: Provisions | C46: 2326 | D46: 3529 | E46: 3343 | F46: 3391 | G46: 4730 | H46: 5187 | I46: 5314 | J46: 4761 | K46: 4625 | L46: 5213 | M46: 4980
B47: Bank deposits and liabilities | E47: 9607 | F47: 2633 | G47: 2879 | H47: 2930 | I47: 1910 | J47: 1805 | K47: 1529 | L47: 1514 | M47: 1683
B48: Other financial liabilities | C48: 1530 | D48: 770 | E48: 1399 | F48: 481 | G48: 620 | H48: 706 | I48: 251 | J48: 955 | K48: 0 | L48: 9 | M48: 63
B49: Other non-financial liabilities | C49: 2823 | D49: 2573 | E49: 2460 | F49: 2201 | G49: 2103 | H49: 2029 | I49: 1983 | J49: 2019 | K49: 1984 | L49: 1887 | M49: 1887
B50: Total non-current liabilities | C50: 384811 | D50: 422036 | E50: 546868 | F50: 542957 | G50: 523567 | H50: 487904 | I50: 455035 | J50: 439059 | K50: 559743 | L50: 562411 | M50: 556976
B52: CURRENT LIABILITIES:
B53: Borrowings | C53: 72292 | D53: 59973 | E53: 13738 | F53: 3063 | G53: 42835 | H53: 68739 | I53: 98602 | J53: 71746 | K53: 35260 | L53: 12022 | M53: 23938
B54: Lease obligation | C54: 15876 | D54: 15910 | E54: 16046 | F54: 15812 | G54: 16345 | H54: 17591 | I54: 18063 | J54: 15228 | K54: 16482 | L54: 16592 | M54: 16778
B55: Provisions | C55: 12586 | D55: 7890 | E55: 65969 | F55: 70911 | G55: 14185 | H55: 8815 | I55: 9542 | J55: 11526 | K55: 14222 | L55: 8750 | M55: 9523
B56: Trade and other payables | C56: 42205 | D56: 93160 | E56: 55408 | F56: 53623 | G56: 48386 | H56: 84300 | I56: 65622 | J56: 71808 | K56: 51830 | L56: 87463 | M56: 69641
B57: Accounts payable, related parties | C57: 1194 | D57: 1940 | E57: 1750 | F57: 1301 | G57: 601 | H57: 909 | I57: 1055 | J57: 558 | K57: 708 | L57: 499 | M57: 776
B58: Bank deposits and liabilities | E58: 98896 | F58: 108821 | G58: 105013 | H58: 110569 | I58: 137318 | J58: 136147 | K58: 145409 | L58: 139271 | M58: 153665
B59: Income tax liabilities | C59: 2656 | D59: 1853 | E59: 1441 | F59: 1792 | G59: 2380 | H59: 1564 | I59: 1841 | J59: 784 | K59: 1371 | L59: 2075 | M59: 1401
B60: Other financial liabilities | C60: 2017 | D60: 2667 | E60: 2812 | F60: 4648 | G60: 6023 | H60: 1804 | I60: 1381 | J60: 1424 | K60: 1285 | L60: 1284 | M60: 1309
B61: Other non-financial and contract liabilities | C61: 32620 | D61: 34253 | E61: 32526 | F61: 35500 | G61: 40312 | H61: 40884 | I61: 46153 | J61: 39236 | K61: 40332 | L61: 41299 | M61: 40042
B62: Total current liabilities | C62: 181446 | D62: 217646 | E62: 288586 | F62: 295471 | G62: 276080 | H62: 335175 | I62: 379577 | J62: 348457 | K62: 306899 | L62: 309255 | M62: 317073
B64: Total equity and liabilities | C64: 702071 | D64: 752192 | E64: 907496 | F64: 915993 | G64: 870371 | H64: 863617 | I64: 882259 | J64: 823910 | K64: 924201 | L64: 902444 | M64: 904325
B66: Net debt | C66: ='Group reconciliations'!C15 -> 204137 | D66: ='Group reconciliations'!D15 -> 194491 | E66: ='Group reconciliations'!E15 -> 226878 | F66: ='Group reconciliations'!F15 -> 232771.8626 | G66: ='Group reconciliations'!G15 -> 292409 | H66: ='Group reconciliations'!H15 -> 310104 | I66: ='Group reconciliations'!I15 -> 306977 | J66: ='Group reconciliations'!J15 -> 280454 | K66: ='Group reconciliations'!K15 -> 284819 | L66: ='Group reconciliations'!L15 -> 282524 | M66: ='Group reconciliations'!M15 -> 302374
B67: Net debt/LTM adjusted OIBDA | C67: ='Group reconciliations'!C24 -> 1.1 | D67: ='Group reconciliations'!D24 -> 1 | E67: ='Group reconciliations'!E24 -> 1.1 | F67: ='Group reconciliations'!F24 -> 1.1 | G67: ='Group reconciliations'!G24 -> 1.3 | H67: ='Group reconciliations'!H24 -> 1.4 | I67: ='Group reconciliations'!I24 -> 1.3 | J67: ='Group reconciliations'!J24 -> 1.3 | K67: ='Group reconciliations'!K24 -> 1.3 | L67: ='Group reconciliations'!L24 -> 1.3 | M67: ='Group reconciliations'!M24 -> 1.4
B70: *Common stock: 1,998,381,575 shares issued with a par value of 0.1 rubles as of September 30, 2020 and 1,998,381,575 shares issued with a par value of 0.1 rubles as of June 30, 2020. Treasury stock: 246 889 580 common shares at cost as of September 30, 2020 and 227 483 749 common shares at cost as of June 30, 2020

Sheet Statement of cash flows
B2: MOBILE TELESYSTEMS (NYSE: MBT)
B3: CONDENSED UNAUDITED CONSOLIDATED STATEMENTS OF CASH FLOWS
C4: 2018 | G4: 2019 | M4: 2020
B5: (Amounts in millions of RUB) | C5: Mar 31 | D5: Jun 30 | E5: Sep 30 | F5: Dec 31 | G5: Mar 31 | H5: Jun 30 | I5: Sep 30 | J5: Dec 31 | K5: Dec 31 | L5: Dec 31 | M5: Mar 31 | N5: Jun 30 | O5: Sep 30
J6: Cash flows from discontinued operations | K6: Cash flows from continuing operations | L6: Total
B7: CASH FLOWS FROM OPERATING ACTIVITIES:
B9: Profit for the period | C9: 15529 | D9: 29953 | E9: -6397 | F9: 7832 | G9: 17821 | H9: 30693 | I9: 49359 | J9: 3979 | K9: 51120 | L9: 55099 | M9: 17916 | N9: 29815 | O9: 48808
B11: Adjustments for:
B12: Depreciation and amortization | C12: 25322 | D12: 51608 | E12: 78063 | F12: 104588 | G12: 26418 | H12: 53393 | I12: 80323 | J12: 10669 | K12: 96279 | L12: 106948 | M12: 24701 | N12: 49352 | O12: 74705
B13: Finance income | C13: -1171 | D13: -2422 | E13: -3837 | F13: -5981 | G13: -1757 | H13: -2923 | I13: -3976 | J13: -449 | K13: -4356 | L13: -4805 | M13: -778 | N13: -1967 | O13: -2652
B14: Finance costs | C14: 9570 | D14: 18680 | E14: 26074 | F14: 38165 | G14: 11281 | H14: 23736 | I14: 36695 | J14: 1344 | K14: 47367 | L14: 48711 | M14: 10309 | N14: 21244 | O14: 31155
B15: Income tax expense | C15: 4750 | D15: 8597 | E15: 14817 | F15: 16969 | G15: 4136 | H15: 7615 | I15: 14076 | J15: 1921 | K15: 15750 | L15: 17671 | M15: 4629 | N15: 9233 | O15: 14906
B16: Net foreign exchange loss/gain and change in fair value of financial instruments | C16: -1923 | D16: -949 | E16: -607 | F16: 1507 | G16: 660 | H16: 233 | I16: -170 | J16: -3565 | K16: 5349 | L16: 1784 | M16: -5259 | N16: -3951 | O16: -4391
B17: Non-cash provision for investments
B18: Share of the (profit) / loss of associates | C18: -835 | D18: -1756 | E18: -2252 | F18: -2889 | G18: -4379 | H18: -5557 | I18: -6966 | J18: 0 | K18: -8079 | L18: -8079 | M18: -1157 | N18: -2370 | O18: -3742
B19: Inventory obsolescence expense | C19: 369 | D19: 1568 | E19: 2288 | F19: 3326 | G19: 545 | H19: 944 | I19: 1510 | J19: 18 | K19: 2189 | L19: 2207 | M19: 304 | N19: 658 | O19: 834
B20: Allowance for doubtful accounts | C20: 871 | D20: 1445 | E20: 1937 | F20: 3201 | G20: 598 | H20: 1313 | I20: 2045 | J20: 5 | K20: 3426 | L20: 3432 | M20: -386 | N20: 1392 | O20: 1805
B21: Bank reserves | E21: 236 | F21: 493 | G21: 711 | H21: 1555 | I21: 2637 | J21: 0 | K21: 4329 | L21: 4329 | M21: 2003 | N21: 5347 | O21: 7127
B22: Change in provisions | C22: 2723 | D22: -2041 | E22: -2391 | F22: -1473 | G22: 2407 | H22: -3174 | I22: -2879 | J22: 344 | K22: -39 | L22: 305 | M22: 2738 | N22: -2540 | O22: -1950
B23: Provision for fines and penalties related to SEC investigation into former operations in Uzbekistan | E23: 55752 | F23: 55752 | G23: 0 | H23: 0 | I23: 0 | J23: 0 | K23: 0 | L23: 0 | M23: 0 | N23: 0 | O23: 0
B24: Non-cash gain from reentrance into Uzbekistan
B25: Other non-cash items | C25: 3 | D25: -797 | E25: -2036 | F25: -3479 | G25: -2747 | H25: -3426 | I25: -6343 | J25: -197 | K25: -6684 | L25: -6882 | M25: -473 | N25: -1903 | O25: -3241
B26: Loss on sale of Ukrain operations | J26: 5499 | K26: 0 | L26: 5499 | M26: 0 | N26: -1967 | O26: -1967
B27: Impairment of non-current assets | F27: 149 | G27: 0 | H27: 0 | I27: 0 | J27: 0 | K27: -148 | L27: -148 | M27: 319 | N27: 1248 | O27: 1227
B28: Non-cash loss on sale of subsidiary in Uzbekistan
B30: Movements in operating assets and liabilities:
B31: (Increase)/Decrease in trade and other receivables and contract assets | C31: -352 | D31: -2357 | E31: 1108 | F31: 438 | G31: -5518 | H31: -4859 | I31: -6476 | J31: -47 | K31: -3761 | L31: -3808 | M31: -443 | N31: 1567 | O31: -843
B32: (Increase)/decrease in bank loans to customers and interbank loans to banks | E32: -6686 | F32: -15367 | G32: -3599 | H32: -14444 | I32: -25907 | J32: 0 | K32: -34452 | L32: -34452 | M32: -9841 | N32: -9919 | O32: -22346
B33: (Increase)/Decrease in inventory | C33: -3667 | D33: -8812 | E33: -11498 | F33: -11292 | G33: 1340 | H33: 3017 | I33: 634 | J33: -378 | K33: 381 | L33: 3 | M33: 590 | N33: -2960 | O33: -885
B34: (Increase)/Decrease in VAT receivable | C34: 331 | D34: -1804 | E34: -1786 | F34: 72 | G34: -1138 | H34: -1942 | I34: -3637 | J34: -47 | K34: -2475 | L34: -2522 | M34: -334 | N34: -1141 | O34: -466
B35: (Increase)/Decrease in advances paid and prepaid expenses | C35: 569 | D35: 482 | E35: 1397 | F35: 1429 | G35: 5601 | H35: 1975 | I35: 2839 | J35: -55 | K35: 3533 | L35: 3478 | M35: 626 | N35: -5265 | O35: -4908
B36: Increase/(Decrease) in trade and other payables, contract liabilities and other liabilities | C36: -8042 | D36: -857 | E36: -3262 | F36: -59 | G36: 2086 | H36: 2349 | I36: 9160 | J36: 845 | K36: 5980 | L36: 6825 | M36: 1369 | N36: 2274 | O36: 1383
B37: Increase/(Decrease) in bank deposits and other bank liabilities | E37: 1806 | F37: 4100 | G37: -2257 | H37: 3160 | I37: 28718 | J37: 0 | K37: 27823 | L37: 27823 | M37: 6112 | N37: 1141 | O37: 13823
B38: Payment of fines and penalties related to SEC investigation into former operations in Uzbekistan | G38: -55607 | H38: -55607 | I38: -55607 | J38: 0 | K38: -55607 | L38: -55607 | M38: 0 | N38: 0 | O38: 0
B39: Dividends received | C39: 874 | D39: 1674 | E39: 2525 | F39: 3726 | G39: 749 | H39: 2250 | I39: 2525 | J39: 0 | K39: 3707 | L39: 3707 | M39: 268 | N39: 651 | O39: 1791
B40: Income taxes paid | C40: -5201 | D40: -9772 | E40: -14979 | F40: -19777 | G40: -5220 | H40: -14727 | I40: -17667 | J40: -1607 | K40: -22336 | L40: -23943 | M40: -5311 | N40: -4753 | O40: -10769
B41: Interest received | C41: 4774 | D41: 5919 | E41: 7052 | F41: 10016 | G41: 1900 | H41: 3351 | I41: 4238 | J41: 341 | K41: 4922 | L41: 5263 | M41: 292 | N41: 1276 | O41: 1668
B42: Interest paid, net of interest capitalised | C42: -8799 | D42: -18297 | E42: -27103 | F42: -37056 | G42: -10124 | H42: -24066 | I42: -34879 | J42: -1278 | K42: -44908 | L42: -46186 | M42: -8690 | N42: -21895 | O42: -31945
B43: NET CASH PROVIDED BY OPERATING ACTIVITIES | C43: 35695 | D43: 70062 | E43: 110221 | F43: 154390 | G43: -16093 | H43: 4859 | I43: 70252 | J43: 17342 | K43: 89310 | L43: 106652 | M43: 39504 | N43: 64567 | O43: 109127
B46: CASH FLOWS FROM INVESTING ACTIVITIES:
B48: Aquisition of subsidiary, net of cash acquired | C48: -3286 | D48: -3093 | E48: -3458 | F48: -3444 | G48: -1639 | H48: -2030 | I48: -2052 | J48: 0 | K48: -2052 | L48: -2052 | M48: 0 | N48: 69 | O48: -262
B49: Purchases of property, plant and equipment | C49: -13096 | D49: -27753 | E49: -44660 | F49: -64731 | G49: -12457 | H49: -27513 | I49: -45000 | J49: -6140 | K49: -62325 | L49: -68465 | M49: -14361 | N49: -28053 | O49: -44588
B50: Purchases of other intangible assets (excl. cost to obtain contracts) | C50: -3574 | D50: -6484 | E50: -10758 | F50: -21751 | G50: -4157 | H50: -11781 | I50: -16087 | J50: -2022 | K50: -20994 | L50: -23016 | M50: -5844 | N50: -12757 | O50: -19594
B51: Cost to obtain and fulfill contracts, paid | C51: -1099 | D51: -2085 | E51: -3524 | F51: -4764 | G51: -1093 | H51: -2307 | I51: -3692 | J51: -299 | K51: -4352 | L51: -4651 | M51: -1188 | N51: -2337 | O51: -3745
B52: Purchase of 3G and 4G licenses in Ukraine, Russia and Armenia | C52: -1366 | D52: -5527 | E52: -5527 | F52: -5527 | G52: 0 | H52: -23 | I52: -255 | J52: 0 | K52: -255 | L52: -255 | M52: 0 | N52: 0 | O52: 0
B53: Purchase of Avantage | E53: -7559 | F53: -7559 | G53: 0 | H53: 0 | I53: 0 | J53: 0 | K53: 0 | L53: 0 | M53: 0 | N53: -196 | O53: -196
B54: Proceeds from sale of property, plant and equipment and assets held for sale | C54: 442 | D54: 2289 | E54: 3924 | F54: 5905 | G54: 1040 | H54: 2903 | I54: 5067 | J54: 122 | K54: 6414 | L54: 6536 | M54: 782 | N54: 2504 | O54: 4897
B55: Purchases of short-term and other investments | C55: -3280 | D55: -29404 | E55: -16389 | F55: -18754 | G55: -5177 | H55: -11812 | I55: -14862 | J55: -3326 | K55: -19388 | L55: -22714 | M55: -2730 | N55: -5350 | O55: -7306
B56: Proceeds from sale of short-term and other investments | C56: 23243 | D56: 24112 | E56: 34503 | F56: 38596 | G56: 24410 | H56: 37959 | I56: 41842 | J56: 2799 | K56: 44340 | L56: 47139 | M56: 2794 | N56: 7297 | O56: 10478
B57: Investments in associates | C57: -1158 | D57: -2101 | E57: -3871 | F57: -3871 | G57: 0 | H57: 0 | I57: 0 | J57: 0 | K57: -75 | L57: -75 | M57: -1415 | N57: -1415 | O57: -1460
B58: Cash payments and proceeds related to swap contracts | C58: -424 | D58: 49 | E58: 6001 | F58: 6892 | G58: -1039 | H58: -740 | I58: -781 | J58: 0 | K58: -2459 | L58: -2459 | M58: 3722 | N58: 7325 | O58: 5236
B59: Proceeds from sale of subsidiaries | F59: 619 | G59: 0 | H59: 0 | I59: 0 | J59: -4181 | K59: 41567 | L59: 37386 | M59: 0 | N59: 0 | O59: 2998
B60: Proceeds from sale of associates | G60: 3000 | H60: 3000 | I60: 3067 | J60: 0 | K60: 3067 | L60: 3067 | M60: 0 | N60: 2450 | O60: 2450
B61: Other investing activities | C61: -272 | D61: 0 | E61: 0 | F61: 0 | G61: 0 | H61: 5 | I61: 5 | J61: 0 | K61: 5 | L61: 5 | M61: 0 | N61: 0 | O61: 0
B62: Disposal of discontinued operation, net of cash disposed of
B63: NET CASH USED IN INVESTING ACTIVITIES: | C63: -3870 | D63: -49997 | E63: -51318 | F63: -78389 | G63: 2888 | H63: -12339 | I63: -32748 | J63: -13047 | K63: -16507 | L63: -29554 | M63: -18240 | N63: -30463 | O63: -51092
B66: CASH FLOWS FROM FINANCING ACTIVITIES:
B67: Repayment of notes | C67: 0 | D67: -8305 | E67: -17225 | F67: -27983 | G67: 0 | H67: 0 | I67: -189 | J67: 0 | K67: -189 | L67: -189 | M67: -9277 | N67: -30210 | O67: -28127
B68: Proceeds from issuance of notes | C68: 20000 | D68: 27550 | E68: 27550 | F68: 27550 | G68: 10000 | H68: 22500 | I68: 47500 | J68: 0 | K68: 72500 | L68: 72500 | M68: 15000 | N68: 46757 | O68: 46757
B69: Repurchase of common stock | C69: -7660 | D69: -7660 | E69: -14583 | F69: -22655 | G69: -10365 | H69: -15899 | I69: -15922 | J69: 0 | K69: -15922 | L69: -15922 | M69: 0 | N69: -1088 | O69: -7613
B70: Notes and debt issuance cost paid | C70: -33 | D70: -39 | E70: -39 | F70: -39 | G70: -22 | H70: -51 | I70: -71 | J70: -1050 | K70: 939 | L70: -111 | M70: -18 | N70: -106 | O70: -106
B71: Lease obligation principal paid | C71: -3226 | D71: -6844 | E71: -9483 | F71: -13577 | G71: -3552 | H71: -7348 | I71: -11240 | J71: 0 | K71: -15154 | L71: -15154 | M71: -3920 | N71: -7506 | O71: -11458
B72: Dividends paid | C72: -2 | D72: -2 | E72: -45244 | F72: -50054 | G72: -1 | H72: -2 | I72: -36541 | J72: 0 | K72: -52505 | L72: -52505 | M72: -22917 | N72: -22918 | O72: -59346
B73: Cash flows from transactions under common control | C73: 0 | D73: 0 | E73: -6872 | F73: -13242 | G73: -11484 | H73: -13520 | I73: -13866 | J73: -64 | K73: -15248 | L73: -15312 | M73: 0 | N73: 0 | O73: 0
B74: Proceeds from loans | C74: 0 | D74: 20000 | E74: 95000 | F74: 95000 | G74: 12413 | H74: 1013 | I74: 52872 | J74: 0 | K74: 62415 | L74: 62415 | M74: 105235 | N74: 106047 | O74: 108414
B75: Repayment of loans | C75: -13748 | D75: -19170 | E75: -19106 | F75: -20076 | G75: -25 | H75: -10525 | I75: -90704 | J75: 0 | K75: -156511 | L75: -156511 | M75: -43294 | N75: -63585 | O75: -63859
B76: Cash inflow under credit guarantee agreement related to foreign-currency hedge | C76: -981 | D76: -981 | E76: -981 | F76: -981 | G76: 0 | H76: 0 | I76: 0 | J76: 0 | K76: 0 | L76: 0 | M76: 0 | N76: 0 | O76: 0
B77: Other financing activities | C77: -33 | D77: 123 | E77: 121 | F77: 133 | G77: 0 | H77: 0 | I77: 342 | J77: 0 | K77: 341 | L77: 341 | M77: - | N77: 0 | O77: -
B78: NET CASH USED IN FINANCING ACTIVITIES | C78: -5683 | D78: 4672 | E78: 9138 | F78: -25924 | G78: -3036 | H78: -23832 | I78: -67819 | J78: -1114 | K78: -119334 | L78: -120448 | M78: 40809 | N78: 27391 | O78: -15338
B81: Effect of exchange rate changes on cash and cash equivalents | C81: 195 | D81: 1969 | E81: 2517 | F81: 3412 | G81: -1488 | H81: -1520 | I81: -1242 | J81: -385 | K81: -2270 | L81: -2655 | M81: 1020 | N81: -1312 | O81: 1882
B82: Intercompany cash flows | J82: -9460 | K82: 9460
B84: NET INCREASE / (DECREASE) IN CASH AND CASH EQUIVALENTS: | C84: 26337 | D84: 26706 | E84: 70558 | F84: 53489 | G84: -17729 | H84: -32832 | I84: -31557 | J84: -6664 | K84: -39341 | L84: -46005 | M84: 63093 | N84: 60183 | O84: 44579
B86: CASH AND CASH EQUIVALENTS, beginning of the period | C86: 30586 | D86: 30586 | E86: 30586 | F86: 30586 | G86: 84075 | H86: 84075 | I86: 84075 | J86: 6664 | K86: 77411 | L86: 84075 | M86: 38070 | N86: 38070 | O86: 38070
B88: CASH AND CASH EQUIVALENTS, end of the period | C88: 56923 | D88: 57292 | E88: 101144 | F88: 84075 | G88: 66346 | H88: 51243 | I88: 52518 | J88: 0 | K88: 38070 | L88: 38070 | M88: 101163 | N88: 98253 | O88: 82649
B89: Less cash and cash equivalents within assets held for sale
B90: CASH AND CASH EQUIVALENTS, end of the period | C90: 56923 | D90: 57292 | E90: 101144 | F90: 84075 | G90: 66346 | H90: 51243 | I90: 52518 | J90: 0 | K90: 38070 | L90: 38070 | M90: 101163 | N90: 98253 | O90: 82649
B92: CAPEX (for the quarter) | C92: =-SUM(C49:C50, C52) -> 18036 | D92: =-SUM(D49:D50, D52)+SUM(C49:C50, C52) -> 21728 | E92: =-SUM(E49:E50, E52)+SUM(D49:D50, D52) -> 21181 | F92: =-SUM(F49:F50, F52)+SUM(E49:E50, E52) -> 31064 | G92: =-SUM(G49:G50, G52) -> 16614 | H92: =-SUM(H49:H50, H52)+SUM(G49:G50, G52) -> 22703 | I92: =-SUM(I49:I50, I52)+SUM(H49:H50, H52) -> 22025 | L92: =-SUM(L49:L50, L52)+SUM(I49:I50, I52) -> 30394 | M92: =-SUM(M49:M50, M52) -> 20205 | N92: =-SUM(N49:N50, N52)+SUM(M49:M50, M52) -> 20605 | O92: =-SUM(O49:O50, O52)+SUM(N49:N50, N52) -> 23372
B93: CAPEX excluding purchases of 3G, 4G license in Ukraine and Russia and net of cash proceeds under sharing agreement (for the quarter) | C93: 16637 | D93: 17567 | E93: 21181 | F93: 31064 | G93: 16396 | H93: 22666 | I93: 21771 | L93: 29853 | M93: 20205 | N93: 20116 | O93: 23372
B94: CAPEX as % of Revenue* | C94: n/a | D94: n/a | E94: n/a | F94: n/a | G94: n/a | H94: n/a | I94: n/a | L94: n/a | M94: 0.169 | N94: 0.1708655398 | O94: 0.181
B95: Cost to obtain and fulfill contracts | C95: =-C51 -> 1099 | D95: =-D51+C51 -> 986 | E95: =-E51+D51 -> 1439 | F95: =-F51+E51 -> 1240 | G95: =-G51 -> 1093 | H95: =-H51+G51 -> 1214 | I95: =-I51+H51 -> 1385 | L95: =-L51+I51 -> 959 | M95: =-M51 -> 1188 | N95: =-N51+M51 -> 1149 | O95: =-O51+N51 -> 1408
B97: FCF | C97: 13924 | D97: 30835 | E97: ='Group reconciliations'!E50 -> 40315 | F97: ='Group reconciliations'!F50 -> 54794 | G97: ='Group reconciliations'!G50 -> -31399 | H97: ='Group reconciliations'!H50 -> -32869 | I97: ='Group reconciliations'!I50 -> 11555 | L97: ='Group reconciliations'!J50 -> 55382 | M97: ='Group reconciliations'!K50 -> 17478 | N97: ='Group reconciliations'!L50 -> 24832 | O97: 49627

Sheet Russia
B2: Country highlights: | C2: 2018 | H2: 2019 | M2: 2020
B3: Russia | C3: Q1 | D3: Q2 | E3: Q3 | F3: Q4 | G3: Full year | H3: Q1 | I3: Q2 | J3: Q3 | K3: Q4 | L3: Full year | M3: Q1 | N3: Q2 | O3: Q3
B5: RUB/USD | C5: 58.41 | D5: 61.8 | E5: 65.5 | F5: 66.5 | G5: 62.71 | H5: 66.13 | I5: 64.56 | J5: 64.57 | K5: 63.72 | L5: =K5 -> 63.72 | M5: 66.38 | N5: ='Ave Forex Rates'!O5 -> 72.36 | O5: ='Ave Forex Rates'!P5 -> 73.56
B7: Amounts in millions of RUB, unless stated
B8: Total revenue | C8: 101050 | D8: 106391 | E8: 119130 | F8: 121512 | G8: 448083 | H8: 109073 | I8: 115322 | J8: 121947 | K8: 126215 | L8: 472557 | M8: 118142 | N8: 116275 | O8: 127363
B9: Service revenue | C9: 87956 | D9: 92295 | E9: 98847 | F9: 99811 | G9: 378909 | H9: 95133 | I9: 99728 | J9: 103824 | K9: 104481 | L9: 403166 | M9: 101616 | N9: 101912 | O9: 107026
B10: - mobile | C10: 74313 | D10: 78358 | E10: 80719 | F10: 79259 | G10: 312649 | H10: 75397 | I10: 79685 | J10: 83140 | K10: 81845 | L10: 320067 | M10: 80586 | N10: 81213 | O10: 85610
B11: - fixed line | C11: 15061 | D11: 15177 | E11: 14882 | F11: 15281 | G11: 60401 | H11: 15076 | I11: 14997 | J11: 14982 | K11: 15049 | L11: 60104 | M11: 15287 | N11: 15777 | O11: 15236
B12: - Bank revenue | C12: 0 | D12: 0 | E12: 5551 | F12: 6300 | G12: 11851 | H12: 6299 | I12: 6850 | J12: 7646 | K12: 9042 | L12: 29837 | M12: 8330 | N12: 8012 | O12: 8828
B13: - integration | C13: 1377 | D13: 1519 | E13: 1832 | F13: 2664 | G13: 7392 | H13: 2278 | I13: 2690 | J13: 2654 | K13: 2667 | L13: 10289 | M13: 2526 | N13: 3230 | O13: 3160
B14: - event ticketing, eSport and other | C14: 237 | D14: 201 | E14: 229 | F14: 602 | G14: 1269 | H14: 313 | I14: 215 | J14: 280 | K14: 721 | L14: 1529 | M14: 315 | N14: 86 | O14: 106
B15: - eliminations | C15: -3032 | D15: -2960 | E15: -4366 | F15: -4295 | G15: -14653 | H15: -4230 | I15: -4709 | J15: -4878 | K15: -4843 | L15: -18660 | M15: -5428 | N15: -6406 | O15: -5914
B16: Sales of goods | C16: 13094 | D16: 14096 | E16: 20283 | F16: 21701 | G16: 69174 | H16: 13940 | I16: 15594 | J16: 18123 | K16: 21734 | L16: 69391 | M16: 16526 | N16: 14363 | O16: 20337
B17: - sales of handsets and accessories | C17: 11088 | D17: 12275 | E17: 17049 | F17: 19433 | G17: 59845 | H17: 12514 | I17: 12354 | J17: 16438 | K17: 17589 | L17: 58895 | M17: 13278 | N17: 11933 | O17: 16915
B18: - sales of software products | C18: 2006 | D18: 1821 | E18: 3234 | F18: 2268 | G18: 9329 | H18: 1426 | I18: 3240 | J18: 1685 | K18: 4145 | L18: 10496 | M18: 3248 | N18: 2430 | O18: 3422
B19: Operating profit | C19: 25345.66874 | D19: 25731.83996 | E19: 30426.42437 | F19: 27672.03005 | G19: 109175.9631 | H19: 27033.9364 | I19: 26748.76197 | J19: 32029.81536 | K19: 27082.01482 | L19: 112894.5286 | M19: 26088 | N19: 25326 | O19: 32334
B20: - operating margin, % | C20: 0.251 | D20: 0.242 | E20: 0.255 | F20: 0.228 | G20: 0.244 | H20: 0.248 | I20: 0.232 | J20: 0.263 | K20: 0.215 | L20: 0.239 | M20: 0.221 | N20: 0.218 | O20: 0.254
B21: Depreciation and amortization | C21: 22816 | D21: 23360 | E21: 23420 | F21: 23235 | G21: 92831 | H21: 22969 | I21: 23510 | J21: 23420 | K21: 24014 | L21: 93913 | M21: 24269 | N21: 24170 | O21: 24825
B22: - as % of revenue | C22: 0.226 | D22: 0.22 | E22: 0.197 | F22: 0.191 | G22: 0.207 | H22: 0.211 | I22: 0.204 | J22: 0.192 | K22: 0.19 | L22: 0.199 | M22: 0.205 | N22: 0.208 | O22: 0.195
B23: Adjusted OIBDA ** | C23: 48161.66874 | D23: 49092.83996 | E23: 53845.42437 | F23: 51078.03005 | G23: 202177.9631 | H23: 50002.9364 | I23: 50259.76197 | J23: 55448.81536 | K23: 51099.01482 | L23: 206810.5286 | M23: 50699 | N23: 50435 | O23: 57159
B24: Adjusted OIBDA margin, % | C24: 0.477 | D24: 0.461 | E24: 0.452 | F24: 0.42 | G24: 0.451 | H24: 0.458 | I24: 0.436 | J24: 0.455 | K24: 0.405 | L24: 0.438 | M24: 0.429 | N24: 0.434 | O24: 0.449
B25: Net profit | C25: 14232.69627 | D25: 13067.75745 | E25: 17064.33986 | F25: 17504.83956 | G25: 61869.63313 | H25: 17976.27257 | I25: 10969.60691 | J25: 15426.14088 | K25: 47515.97623 | L25: 91887.9966 | M25: 16896 | N25: 11154 | O25: 17751
B26: - margin, % | C26: 0.141 | D26: 0.123 | E26: 0.143 | F26: 0.144 | G26: 0.138 | H26: 0.165 | I26: 0.095 | J26: 0.126 | K26: 0.376 | L26: 0.194 | M26: 0.143 | N26: 0.096 | O26: 0.139
B27: CAPEX | C27: 15367 | D27: 15492 | E27: 18437 | F27: 25845 | G27: 75141 | H27: 14499 | I27: 20557 | J27: 19108 | K27: 27647 | L27: 81811 | M27: 19929 | N27: 20190 | O27: 23004
B28: CAPEX excluding purchases of 4G license and net of sharing | C28: 15334 | D28: 15492 | E28: 18437 | F28: 25845 | G28: 75108 | H28: 14281 | I28: 20543 | J28: 19086 | K28: 27106 | L28: 81016 | M28: 19929 | N28: 19701.35914 | O28: 23004
B29: - as % of revenue | C29: 0.152 | D29: 0.146 | E29: 0.155 | F29: 0.213 | G29: 0.168 | H29: 0.131 | I29: 0.178 | J29: 0.157 | K29: 0.215 | L29: 0.171 | M29: 0.169 | N29: 0.169 | O29: 0.181
B30: Cost to obtain and fulfill contracts | C30: 1042 | D30: 932 | E30: 1385 | F30: 1240 | G30: 4599 | H30: 1024 | I30: 1147 | J30: 1304 | K30: 877 | L30: 4352 | M30: 1188 | N30: 1149 | O30: 1408
B32: MTS-Bank
B33: Amounts in millions of RUB, unless otherwise indicated
B34: Revenue | E34: 5551 | F34: 6300 | G34: 11851 | H34: 6299 | I34: 6850 | J34: 7646 | K34: 9042 | L34: 29837 | M34: 8498 | N34: 8209 | O34: 8956
B35: OIBDA | E35: 1428 | F35: 410 | G35: 1838 | H35: 24 | I35: 1406 | J35: 941 | K35: 835 | L35: 3206 | M35: 404 | N35: -811 | O35: 1561
B36: OIBDA margin, % | E36: 0.257 | F36: 0.065 | G36: 0.155 | H36: 0.004 | I36: 0.205 | J36: 0.123 | K36: 0.092 | L36: 0.107 | M36: 0.048 | N36: n/a | O36: 0.174
B37: Net profit | E37: 613 | F37: -143 | G37: 470 | H37: 288 | I37: 70 | J37: 717 | K37: 244 | L37: 1319 | M37: 214 | N37: -1138 | O37: 1175
B38: - margin, % | E38: 0.111 | F38: -0.023 | G38: 0.04 | H38: 0.046 | I38: 0.01 | J38: 0.094 | K38: 0.027 | L38: 0.044 | M38: 0.025 | N38: n/a | O38: 0.131
B39: Total retail loan portfolio at the end of the period, mln RUB | E39: 43077 | F39: 52479 | G39: 52479 | H39: 58761 | I39: 67038 | J39: 79733 | K39: 90684 | L39: 90684 | M39: 98104 | N39: 99281 | O39: 107196
B41: MTS-bank, operating highlights
B42: MTS Bank clients, thou | H42: 2213 | I42: 2267 | J42: 2307 | K42: 2382 | L42: 2382 | M42: 2460 | N42: 2385 | O42: 2413
B43: o/w daily banking clients | H43: 1584 | I43: 1586 | J43: 1509 | K43: 1515 | L43: 1589 | M43: 1589 | N43: 1541 | O43: 1557
B44: MTS Bank mobile app users, thou | H44: 597.031 | I44: 649 | J44: 753 | K44: 910 | L44: 910 | M44: 1024 | N44: 1025 | O44: 1090.173
B46: Telecom operating highlights
B47: Mobile business
B48: MTS subscribers, mln | C48: 78.1 | D48: 78.1 | E48: 77.96 | F48: 78.01 | G48: 78.01 | H48: 77.6 | I48: 78.1 | J48: 78.8 | K48: 79.1 | L48: 79.1 | M48: 78.5 | N48: 77.2 | O48: 78.2
B49: Total traffic, bln minutes | C49: 88.2 | D49: 93.2 | E49: 91.4 | F49: 93 | G49: 365.8 | H49: 87.9 | I49: 91.3 | J49: 91.6 | K49: 92.1 | L49: 362.9 | M49: 88.6 | N49: 95.1 | O49: 95.15
B50: Total smartphone data, Tb | C50: 616816 | D50: 665208 | E50: 751864 | F50: 866118 | G50: 2900006 | H50: 927772 | I50: 1009399 | J50: 1160004 | K50: 1299398 | L50: 4396573 | M50: 1396821 | N50: 1449143 | O50: 1555430
B52: Fixed business
B53: Residential
B54: Number of subscribers, thou
B55: - fixed telephony | C55: 3160 | D55: 3124 | E55: 3081 | F55: 3028 | G55: 3028 | H55: 2971 | I55: 2920.043 | J55: 2890.749 | K55: 2836.477 | L55: 2836.477 | M55: 2790 | N55: 2765 | O55: 2716
B56: - internet | C56: 3100 | D56: 3145 | E56: 3182 | F56: 3246 | G56: 3246 | H56: 3316 | I56: 3349.556 | J56: 3372.567 | K56: 3481 | L56: 3481 | M56: 3559 | N56: 3659 | O56: 3758
B57: - TV | C57: 2830 | D57: 2835 | E57: 2853 | F57: 2901 | G57: 2901 | H57: 2934 | I57: 2947.928 | J57: 2970.993 | K57: 3007 | L57: 3007 | M57: 3065 | N57: 3144 | O57: 3207
B58: MGTS (B2C+B2B)
B59: - GPON subs, thou | C59: 1875 | D59: 1894 | E59: 1915 | F59: 1948 | G59: 1948 | H59: 1979 | I59: 1996 | J59: 2043 | K59: 2077 | L59: 2077 | M59: 2111.165 | N59: 2137 | O59: 2161.977
B61: Media, operating highlights
B62: Number of TV users, thou | H62: 4424.998 | I62: 4594.775 | J62: 4473.999 | K62: 4569.635 | L62: 4569.635 | M62: 4591.622 | N62: 4908 | O62: 5631
B63: o/w interactive TV users, thou | H63: 1908.321 | I63: 2010.525 | J63: 1848.767 | K63: 1846.657 | L63: 1846.657 | M63: 1827.533 | N63: 2050 | O63: 2675
B64: o/w OTT services users, thou | H64: 1205.858 | I64: 1291.317 | J64: 1090.688 | K64: 1053.912 | L64: 1053.912 | M64: 1001.667 | N64: 1192 | O64: 1778
B66: Other operating highlights
B67: Mobile Internet indicators
B68: Mobile Internet users penetration, as % from monthly active users | C68: 0.541 | D68: 0.554 | E68: 0.57 | F68: 0.588 | G68: 0.588 | H68: 0.598 | I68: 0.6125 | J68: 0.622 | K68: 0.629 | L68: 0.629 | M68: 0.635 | N68: 0.637 | O68: 0.646
B69: Smartphones penetration, as % of all registered mobile phones on MTS network* | C69: 0.659 | D69: 0.674 | E69: 0.689 | F69: 0.701 | G69: 0.701 | H69: 0.713 | I69: 0.725 | J69: 0.733 | K69: 0.745 | L69: 0.745 | M69: 0.761 | N69: 0.771 | O69: 0.778
B71: Client relationship
B72: My MTS, MAU, thou | C72: 10995 | D72: 11967.761 | E72: 13165.31 | F72: 14134.424 | G72: 14134.424 | H72: 15358.609 | I72: 17706.466 | J72: 19514.946 | K72: 20342.425 | L72: 20342.425 | M72: 21916.17 | N72: 22287 | O72: 23308.705
B73: MTS Cashback registered users, thou | H73: 2712.871 | I73: 3519.801 | J73: 4086.205 | K73: 5047.806 | L73: 5047.806 | M73: 5691.194 | N73: 6132 | O73: 8405.885
B74: Music services users (incl. partners), thou | H74: 1021.629 | I74: 1141.748 | J74: 1139.295 | K74: 1124.936 | L74: 1124.936 | M74: 1005.251 | N74: 975 | O74: 924
B75: Number of tickets sold at MTS, thou | H75: 1283 | I75: 862 | J75: 1064 | K75: 2475 | L75: =SUM(H75:K75) -> 5684 | M75: 1332 | N75: (54) | O75: 293.537
B76: E-commerce
B77: Online sales, mln | C77: 1361 | D77: 1537 | E77: 2085 | F77: 2008 | G77: 6991 | H77: 1548 | I77: 1707 | J77: 2116 | K77: 2673 | L77: 8044 | M77: 2557 | N77: 3558 | O77: 3730
B78: Unless stated otherwise, client numbers and app users are calculated based on any account activity over the last 3 months * MTS defines a smartphone as a handset with one of the following operating systems: iOS, Android, Windows, Blackberry OS, Symbian, Linux or Bada. ** Adjusted OIBDA for 4Q 2018 and 2018 doesn't include a loss from impairment of non-current assets of RUB 172 mln. Adjusted OIBDA for 1Q 2020, 2Q2020 and 2020 doesn't include a loss from impairment of non-current assets of RUB 342 mln, RUB 938 mln and RUB 1 270 mln, respectively.

Sheet Armenia
B2: Country highlights:* | C2: 2018 | H2: 2019 | M2: 2020
B3: Armenia | C3: Q1 | D3: Q2 | E3: Q3 | F3: Q4 | G3: Full year | H3: Q1 | I3: Q2 | J3: Q3 | K3: Q4 | L3: Full year | M3: Q1 | N3: Q2 | O3: Q3
B5: Amounts in millions of RUB, unless stated
B6: Revenue | C6: 1612 | D6: 1827 | E6: 2037 | F6: 2053 | G6: 7529 | H6: 1811 | I6: 1850 | J6: 1996 | K6: 1970 | L6: 7627 | M6: 1768 | N6: 1763 | O6: 2028
B7: Operating profit | C7: 183 | D7: 150 | E7: 370 | F7: 92 | G7: 795 | H7: 157 | I7: 255 | J7: 374 | K7: 396 | L7: 1182 | M7: 411 | N7: 407 | O7: 575
B8: - operating margin, % | C8: 0.114 | D8: 0.082 | E8: 0.182 | F8: 0.044 | G8: 0.106 | H8: 0.087 | I8: 0.138 | J8: 0.188 | K8: 0.201 | L8: 0.155 | M8: 0.233 | N8: 0.231 | O8: 0.283
B9: Depreciation and amortization | C9: 589 | D9: 670 | E9: 637 | F9: 677 | G9: 2573 | H9: 630 | I9: 657 | J9: 649 | K9: 510 | L9: 2446 | M9: 433 | N9: 483 | O9: 517
B10: - as % of revenue | C10: 0.365 | D10: 0.367 | E10: 0.312 | F10: 0.33 | G10: 0.342 | H10: 0.348 | I10: 0.355 | J10: 0.325 | K10: 0.259 | L10: 0.321 | M10: 0.245 | N10: 0.274 | O10: 0.255
B11: Adjusted OIBDA** | C11: 772 | D11: 821 | E11: 1006 | F11: 769 | G11: 3368 | H11: 788 | I11: 911 | J11: 1023 | K11: 906 | L11: 3628 | M11: 844 | N11: 890 | O11: 1092
B12: Adjusted OIBDA margin, % | C12: 0.479 | D12: 0.449 | E12: 0.494 | F12: 0.374 | G12: 0.447 | H12: 0.435 | I12: 0.492 | J12: 0.513 | K12: 0.46 | L12: 0.476 | M12: 0.477 | N12: 0.505 | O12: 0.538
B13: Net profit | C13: 113 | D13: -250 | E13: 448 | F13: -958 | G13: -647 | H13: -1673 | I13: 64 | J13: 342 | K13: 372 | L13: -895 | M13: 578 | N13: 143 | O13: 532
B14: - margin, % | C14: 0.07 | D14: n/a | E14: 0.22 | F14: n/a | G14: n/a | H14: n/a | I14: 0.035 | J14: 0.171 | K14: 0.189 | L14: n/a | M14: 0.327 | N14: 0.081 | O14: 0.262
B15: CAPEX | C15: 80 | D15: 81 | E15: 275 | F15: 1550 | G15: 1986 | H15: 103 | I15: 255 | J15: 511 | K15: 890 | L15: 1759 | M15: 276 | N15: 416 | O15: 366
B16: CAPEX excluding purchases of 4G licenses | C16: 80 | D16: 81 | E16: 275 | F16: 1550 | G16: 1986 | H16: 103 | I16: 232 | J16: 279 | K16: 890 | L16: 1504 | M16: 276 | N16: 416 | O16: 366
B17: - as % of revenue | C17: 0.05 | D17: 0.044 | E17: 0.135 | F17: 0.755 | G17: 0.264 | H17: 0.057 | I17: 0.126 | J17: 0.14 | K17: 0.452 | L17: 0.197 | M17: 0.156 | N17: 0.236 | O17: 0.181
B19: Operating highlights
B20: Mobile business
B21: MTS subscribers, mln | C21: 2100 | D21: 2107.6 | E21: 2152.4 | F21: 2128.1 | G21: 2128.1 | H21: 2119 | I21: 2149 | J21: 2217.2 | K21: 2207.4 | L21: 2207.4 | M21: 2162.8 | N21: 2057.5 | O21: 2106.3
B22: Total traffic, bln minutes | C22: 3534 | D22: 3781 | E22: 3851 | F22: 3827 | G22: 14993 | H22: 3631 | I22: 3947 | J22: 4045 | K22: 4022 | L22: 15645 | M22: 3835 | N22: 4182 | O22: 4485
B24: AMD/RUB | C24: 8.47 | D24: 7.82 | E24: ='Ave Forex Rates'!F8 -> 7.37 | F24: ='Ave Forex Rates'!G8 -> 7.3 | G24: ='Ave Forex Rates'!H8 -> 7.74 | H24: ='Ave Forex Rates'!I8 -> 7.37 | I24: ='Ave Forex Rates'!J8 -> 7.45 | J24: ='Ave Forex Rates'!K8 -> 7.38 | K24: ='Ave Forex Rates'!L8 -> 7.49 | L24: ='Ave Forex Rates'!M8 -> 7.42 | M24: ='Ave Forex Rates'!N8 -> 7.31 | N24: ='Ave Forex Rates'!O8 -> 6.7 | O24: ='Ave Forex Rates'!P8 -> 6.61
B26: Amounts in millions of AMD, unless stated
B27: Revenue | C27: 13647 | D27: 14275 | E27: 15008 | F27: 14985 | G27: 57915 | H27: 13348 | I27: 13782 | J27: 14724 | K27: 14760 | L27: 56614 | M27: 12892 | N27: 11817 | O27: 13384
B28: Operating profit | C28: 1547 | D28: 1159 | E28: 2738 | F28: 689 | G28: 6133 | H28: 1147 | I28: 1895 | J28: 2763 | K28: 2970 | L28: 8775 | M28: 2988 | N28: 2725 | O28: 3789
B29: - operating margin, % | C29: 0.113 | D29: 0.081 | E29: 0.182 | F29: 0.046 | G29: 0.106 | H29: 0.086 | I29: 0.137 | J29: 0.188 | K29: 0.201 | L29: 0.155 | M29: 0.232 | N29: 0.231 | O29: 0.283
B30: Depreciation and amortization | C30: 4985 | D30: 5241 | E30: 4689 | F30: 4946 | G30: 19861 | H30: 4645 | I30: 4892 | J30: 4787 | K30: 3818 | L30: 18142 | M30: 3154 | N30: 3240 | O30: 3412
B31: - as % of revenue | C31: 0.365 | D31: 0.367 | E31: 0.312 | F31: 0.33 | G31: 0.343 | H31: 0.348 | I31: 0.355 | J31: 0.325 | K31: 0.259 | L31: 0.32 | M31: 0.245 | N31: 0.274 | O31: 0.255
B32: Adjusted OIBDA** | C32: 6532 | D32: 6400 | E32: 7427 | F32: 5636 | G32: 25995 | H32: 5792 | I32: 6787 | J32: 7550 | K32: 6788 | L32: 26917 | M32: 6141 | N32: 5966 | O32: 7201
B33: Adjusted OIBDA margin, % | C33: 0.479 | D33: 0.448 | E33: 0.495 | F33: 0.376 | G33: 0.449 | H33: 0.434 | I33: 0.492 | J33: 0.513 | K33: 0.46 | L33: 0.475 | M33: 0.476 | N33: 0.505 | O33: 0.538
B34: Net profit | C34: 956 | D34: -1928 | E34: 3279 | F34: -6868 | G34: -4561 | H34: -12554 | I34: 477 | J34: 2526 | K34: 2791 | L34: -6760 | M34: 4074 | N34: 995 | O34: 3510
B35: - margin, % | C35: 0.07 | D35: n/a | E35: 0.218 | F35: n/a | G35: n/a | H35: n/a | I35: 0.035 | J35: 0.172 | K35: 0.189 | L35: n/a | M35: 0.316 | N35: 0.084 | O35: 0.262
B36: CAPEX | C36: 675 | D36: 634 | E36: 2047 | F36: 11275 | G36: 14631 | H36: 765 | I36: 1902 | J36: 3796 | K36: 6707 | L36: 13170 | M36: 1870 | N36: 2789 | O36: 2457
B37: CAPEX excluding purchases of 4G licenses | C37: 675 | D37: 634 | E37: 2047 | F37: 11275 | G37: 14631 | H37: 765 | I37: 1732 | J37: 2046 | K37: 6707 | L37: 11250 | M37: 1870 | N37: 2789 | O37: 2457
B38: - as % of revenue | C38: 0.049 | D38: 0.044 | E38: 0.136 | F38: 0.752 | G38: 0.253 | H38: 0.057 | I38: 0.126 | J38: 0.139 | K38: 0.454 | L38: 0.199 | M38: 0.145 | N38: 0.236 | O38: 0.184
B40: *Due to the rounding and translation practices, Russian rubles and functional currency margins, as well as other non-IFRS financial measures, may differ.

Sheet Turkmenistan
B2: Country highlights:* | C2: 2018 | H2: 2019 | M2: 2020
B3: Turkmenistan | C3: Q1 | D3: Q2 | E3: Q3 | F3: Q4 | G3: Full year | H3: Q1 | I3: Q2 | J3: Q3 | K3: Q4 | L3: Full year | M3: Q1 | N3: Q2 | O3: Q3
B5: Amounts in millions of RUB, unless stated
B6: Revenue | C6: 0 | D6: 0 | E6: 0 | F6: 0 | G6: 0 | H6: 0 | I6: 0 | J6: 0 | K6: 0 | L6: 0 | M6: 0 | N6: 0 | O6: 0
B7: Operating profit | C7: -136 | D7: -142 | E7: -72 | F7: -464 | G7: -814 | H7: -86 | I7: 14 | J7: -25 | K7: -114 | L7: -211 | M7: 9 | N7: -4 | O7: 3
B8: - operating margin, % | C8: n/a | D8: n/a | E8: n/a | F8: n/a | G8: n/a | H8: n/a | I8: n/a | J8: n/a | K8: n/a | L8: n/a | M8: n/a | N8: n/a | O8: n/a
B9: Depreciation and amortization | C9: 0 | D9: 0 | E9: 0 | F9: 0 | G9: 0 | H9: 0 | I9: 0 | J9: 0 | K9: 0 | L9: 0 | M9: 0 | N9: 0 | O9: 0
B10: - as % of revenue | C10: n/a | D10: n/a | E10: n/a | F10: n/a | G10: n/a | H10: n/a | I10: n/a | J10: n/a | K10: n/a | L10: n/a | M10: n/a | N10: n/a | O10: n/a
B11: Adjusted OIBDA** | C11: -136 | D11: -142 | E11: -72 | F11: -464 | G11: -814 | H11: -86 | I11: 14 | J11: -25 | K11: -114 | L11: -211 | M11: -14 | N11: -14 | O11: -19
B12: Adjusted OIBDA margin, % | C12: n/a | D12: n/a | E12: n/a | F12: n/a | G12: n/a | H12: n/a | I12: n/a | J12: n/a | K12: n/a | L12: n/a | M12: n/a | N12: n/a | O12: n/a
B13: Net profit | C13: -32 | D13: -134 | E13: -67 | F13: -461 | G13: -694 | H13: -82 | I13: 10 | J13: -24 | K13: 37 | L13: -59 | M13: 9 | N13: -4 | O13: 3
B14: - margin, % | C14: n/a | D14: n/a | E14: n/a | F14: n/a | G14: n/a | H14: n/a | I14: n/a | J14: n/a | K14: n/a | L14: n/a | M14: n/a | N14: n/a | O14: n/a
B15: CAPEX | C15: 1 | D15: 6 | E15: 2 | F15: 5 | G15: 14 | H15: 1 | I15: 1 | J15: 1 | K15: 0 | L15: 3 | M15: 0 | N15: 0 | O15: 0
B16: - as % of revenue | C16: n/a | D16: n/a | E16: n/a | F16: n/a | G16: n/a | H16: n/a | I16: n/a | J16: n/a | K16: n/a | L16: n/a | M16: n/a | N16: n/a | O16: n/a
B18: Operating highlights
B19: Mobile business
B20: MTS subscribers, thous | C20: n/a | D20: n/a | E20: n/a | F20: n/a | G20: n/a | H20: n/a | I20: n/a | J20: n/a | K20: n/a | L20: n/a | M20: n/a | N20: n/a | O20: n/a
B21: Total traffic, mln minutes | C21: n/a | D21: n/a | E21: n/a | F21: n/a | G21: n/a | H21: n/a | I21: n/a | J21: n/a | K21: n/a | L21: n/a | M21: n/a | N21: n/a | O21: n/a
B23: TMT/RUB | C23: ='Ave Forex Rates'!D7 -> 0.06 | D23: ='Ave Forex Rates'!E7 -> 0.057 | E23: ='Ave Forex Rates'!F7 -> 0.05 | F23: ='Ave Forex Rates'!G7 -> 0.05 | G23: ='Ave Forex Rates'!H7 -> 0.06 | H23: ='Ave Forex Rates'!I7 -> 0.05 | I23: ='Ave Forex Rates'!J7 -> 0.05 | J23: ='Ave Forex Rates'!K7 -> 0.054 | K23: ='Ave Forex Rates'!L7 -> 0.055 | L23: ='Ave Forex Rates'!M7 -> 0.054 | M23: ='Ave Forex Rates'!N7 -> 0.053 | N23: ='Ave Forex Rates'!O7 -> 0.048 | O23: ='Ave Forex Rates'!P7 -> 0.048
B25: Amounts in millions of TMT, unless stated
B26: Revenue | C26: 0 | D26: 0 | E26: 0 | F26: 0 | G26: 0 | H26: 0 | I26: 0 | J26: 0 | K26: 0 | L26: 0 | M26: 0 | N26: 0 | O26: 0
B27: Operating profit | C27: -8.4 | D27: -8 | E27: -3.8 | F27: -24.3 | G27: -44.5 | H27: -4.5 | I27: 0.7 | J27: -1.3 | K27: -6.4 | L27: 0 | M27: 0.5 | N27: -0.2 | O27: 0.2
B28: - operating margin, % | C28: n/a | D28: n/a | E28: n/a | F28: n/a | G28: n/a | H28: n/a | I28: n/a | J28: n/a | K28: n/a | L28: n/a | M28: n/a | N28: n/a | O28: n/a
B29: Depreciation and amortization | C29: 0 | D29: 0 | E29: 0 | F29: 0 | G29: 0 | H29: 0 | I29: 0 | J29: 0 | K29: 0 | L29: 0 | M29: 0 | N29: 0 | O29: 0
B30: - as % of revenue | C30: n/a | D30: n/a | E30: n/a | F30: n/a | G30: n/a | H30: n/a | I30: n/a | J30: n/a | K30: n/a | L30: n/a | M30: n/a | N30: n/a | O30: n/a
B31: Adjusted OIBDA** | C31: -8.4 | D31: -8 | E31: -3.8 | F31: -24.3 | G31: -44.5 | H31: -4.5 | I31: 0.7 | J31: -1.3 | K31: -6.4 | L31: 0 | M31: -0.7 | N31: -0.7 | O31: -0.9
B32: Adjusted OIBDA margin, % | C32: n/a | D32: n/a | E32: n/a | F32: n/a | G32: n/a | H32: n/a | I32: n/a | J32: n/a | K32: n/a | L32: n/a | M32: n/a | N32: n/a | O32: n/a
B33: Net profit | C33: -2 | D33: -7.6 | E33: -3.5 | F33: -24.2 | G33: -37.3 | H33: -4.4 | I33: 0.6 | J33: -1.3 | K33: 2.1 | L33: 0 | M33: 0.5 | N33: -0.2 | O33: 0.2
B34: - margin % | C34: n/a | D34: n/a | E34: n/a | F34: n/a | G34: n/a | H34: n/a | I34: n/a | J34: n/a | K34: n/a | L34: n/a | M34: n/a | N34: n/a | O34: n/a
B35: CAPEX | C35: 0.1 | D35: 0.4 | E35: 0.1 | F35: 0.2 | G35: 0.8 | H35: 0 | I35: 0 | J35: 0.1 | K35: 0 | L35: 0.2 | M35: 0 | N35: 0 | O35: 0
B36: - as % of revenue | C36: n/a | D36: n/a | E36: n/a | F36: n/a | G36: n/a | H36: n/a | I36: n/a | J36: n/a | K36: n/a | L36: n/a | M36: n/a | N36: n/a | O36: n/a
B39: *Due to the rounding and translation practices, Russian rubles and functional currency margins, as well as other non-IFRS financial measures, may differ.
B41: Adjusted OIBDA for 1Q 2020, for 2Q 2020, for 3Q 2020 and 2020 doesn't include a reversal of impairment of non-current assets of RUB 23 mln, RUB 10 mln, 21 and RUB 54 mln, respectively.

Sheet Belarus
B2: Country highlights:* | C2: 2018 | H2: 2019 | M2: 2020
B3: Belarus** | C3: Q1 | D3: Q2 | E3: Q3 | F3: Q4 | G3: Full year | H3: Q1 | I3: Q2 | J3: Q3 | K3: Q4 | L3: Full year | M3: Q1 | N3: Q2 | O3: Q3
B5: Amounts in millions of RUB, unless stated
B6: Revenue | C6: 5662 | D6: 6569 | E6: 7553 | F6: 7911 | G6: 27695 | H6: 7259 | I6: 7756 | J6: 8633 | K6: 8944 | L6: 32592 | M6: 8329 | N6: 8542 | O6: 9356
B7: Operating profit | C7: 2060 | D7: 2566 | E7: 3126 | F7: 2659 | G7: 10411 | H7: 2773 | I7: 2973 | J7: 3413 | K7: 3131 | L7: 12290 | M7: 3156 | N7: 3328 | O7: 3663
B8: - operating margin, % | C8: 0.364 | D8: 0.391 | E8: 0.414 | F8: 0.336 | G8: 0.376 | H8: 0.382 | I8: 0.383 | J8: 0.395 | K8: 0.35 | L8: 0.377 | M8: 0.379 | N8: 0.39 | O8: 0.391
B9: Depreciation and amortization | C9: 1051 | D9: 1130 | E9: 1266 | F9: 1235 | G9: 4682 | H9: 1169 | I9: 1214 | J9: 1250 | K9: 1398 | L9: 5031 | M9: 1319 | N9: 1319 | O9: 1174
B10: - as % of revenue | C10: 0.186 | D10: 0.172 | E10: 0.168 | F10: 0.156 | G10: 0.169 | H10: 0.161 | I10: 0.157 | J10: 0.145 | K10: 0.156 | L10: 0.154 | M10: 0.158 | N10: 0.154 | O10: 0.125
B11: OIBDA | C11: 3111 | D11: 3696 | E11: 4392 | F11: 3893 | G11: 15092 | H11: 3942 | I11: 4187 | J11: 4664 | K11: 4528 | L11: 17321 | M11: 4475 | N11: 4648 | O11: 4836
B12: OIBDA margin, % | C12: 0.549 | D12: 0.563 | E12: 0.581 | F12: 0.492 | G12: 0.545 | H12: 0.543 | I12: 0.54 | J12: 0.54 | K12: 0.506 | L12: 0.531 | M12: 0.537 | N12: 0.544 | O12: 0.517
B13: Net profit | C13: 1531 | D13: 2214 | E13: 1988 | F13: 2019 | G13: 7752 | H13: 2108 | I13: 2386 | J13: 2649 | K13: 2211 | L13: 9354 | M13: 2201 | N13: 2362 | O13: 2738
B14: - margin, % | C14: 0.27 | D14: 0.337 | E14: 0.263 | F14: 0.255 | G14: 0.28 | H14: 0.29 | I14: 0.308 | J14: 0.307 | K14: 0.247 | L14: 0.287 | M14: 0.264 | N14: 0.276 | O14: 0.293
B15: CAPEX | C15: 477 | D15: 402 | E15: 582 | F15: 1351 | G15: 2812 | H15: 814 | I15: 1497 | J15: 783 | K15: 1201 | L15: 4296 | M15: 290 | N15: 315 | O15: 603
B16: CAPEX excluding purchases of 3G license | C16: 477 | D16: 402 | E16: 582 | F16: 1351 | G16: 2812 | H16: 814 | I16: 814 | J16: 783 | K16: 1201 | L16: 3612 | M16: 290 | N16: 315 | O16: 603
B17: - as % of revenue | C17: 0.084 | D17: 0.061 | E17: 0.077 | F17: 0.171 | G17: 0.102 | H17: 0.112 | I17: 0.105 | J17: 0.091 | K17: 0.134 | L17: 0.111 | M17: 0.035 | N17: 0.037 | O17: 0.064
B19: Operating highlights
B20: Mobile business
B21: MTS subscribers, mln | C21: 5.3 | D21: 5.3 | E21: 5.4 | F21: 5.5 | G21: 5.5 | H21: 5.5 | I21: 5.6 | J21: 5.6 | K21: 5.6 | L21: 5.6 | M21: 5.7 | N21: 5.6 | O21: 5.7
B22: Total traffic, bln minutes | C22: 8 | D22: 8.7 | E22: 8.6 | F22: 8.66 | G22: 33.96 | H22: 8.5 | I22: 9.2 | J22: 9.3 | K22: 9.3 | L22: 36.3 | M22: 9.25 | N22: 10.2 | O22: 10.2
B24: BYN/RUB (BYR/RUB) | C24: 0.03 | D24: 0.03 | E24: ='Ave Forex Rates'!F9 -> 0.03 | F24: ='Ave Forex Rates'!G9 -> 0.03 | G24: ='Ave Forex Rates'!H9 -> 0.03 | H24: ='Ave Forex Rates'!I9 -> 0.03 | I24: ='Ave Forex Rates'!J9 -> 0.03 | J24: ='Ave Forex Rates'!K9 -> 0.03 | K24: ='Ave Forex Rates'!L9 -> 0.03 | L24: ='Ave Forex Rates'!M9 -> 0.03 | M24: ='Ave Forex Rates'!N9 -> 0.03 | N24: ='Ave Forex Rates'!O9 -> 0.03 | O24: ='Ave Forex Rates'!P9 -> 0.03
B26: Amounts in millions of BYN, unless stated
B27: Revenue | C27: 196.42 | D27: 212.89 | E27: 235.9 | F27: 252.92 | G27: 898.13 | H27: 235.68 | I27: 251.37 | J27: 274.78 | K27: 291.14 | L27: 1052.97 | M27: 281.2 | N27: 287.73 | O27: 318.71
B28: Operating profit | C28: 71.46 | D28: 83.18 | E28: 97.82 | F28: 84.73 | G28: 337.19 | H28: 90.04 | I28: 96.38 | J28: 108.64 | K28: 101.62 | L28: 396.68 | M28: 106.67 | N28: 112.04 | O28: 124.86
B29: - operating margin, % | C29: 0.364 | D29: 0.391 | E29: 0.415 | F29: 0.335 | G29: 0.375 | H29: 0.382 | I29: 0.383 | J29: 0.395 | K29: 0.349 | L29: 0.377 | M29: 0.379 | N29: 0.389 | O29: 0.392
B30: Depreciation and amortization | C30: 36.47 | D30: 36.62 | E30: 39.52 | F30: 39.49 | G30: 152.1 | H30: 37.95 | I30: 39.37 | J30: 39.8 | K30: 45.51 | L30: 162.63 | M30: 44.55 | N30: 44.39 | O30: 39.91
B31: - as % of revenue | C31: 0.186 | D31: 0.172 | E31: 0.167 | F31: 0.156 | G31: 0.169 | H31: 0.161 | I31: 0.157 | J31: 0.145 | K31: 0.156 | L31: 0.154 | M31: 0.158 | N31: 0.154 | O31: 0.125
B32: OIBDA | C32: 107.93 | D32: 119.81 | E32: 137.26 | F32: 124.56 | G32: 489.56 | H32: 127.99 | I32: 135.75 | J32: 148.43 | K32: 147.13 | L32: 559.3 | M32: 151.22 | N32: 156.42 | O32: 164.78
B33: OIBDA margin, % | C33: 0.549 | D33: 0.563 | E33: 0.582 | F33: 0.492 | G33: 0.545 | H33: 0.543 | I33: 0.54 | J33: 0.54 | K33: 0.505 | L33: 0.531 | M33: 0.538 | N33: 0.544 | O33: 0.517
B34: Net profit | C34: 53.08 | D34: 71.66 | E34: 61.86 | F34: 64.28 | G34: 250.88 | H34: 68.41 | I34: 77.34 | J34: 84.43 | K34: 71.76 | L34: 301.94 | M34: 74.46 | N34: 79.45 | O34: 93.39
B35: - margin % | C35: 0.27 | D35: 0.337 | E35: 0.262 | F35: 0.254 | G35: 0.275 | H35: 0.29 | I35: 0.308 | J35: 0.307 | K35: 0.246 | L35: 0.287 | M35: 0.265 | N35: 0.276 | O35: 0.293
B36: CAPEX | C36: 17 | D36: 13.199 | E36: 18 | F36: 42.591 | G36: 90.79 | H36: 27 | I36: 49 | J36: 25 | K36: 40 | L36: 140 | M36: 10 | N36: 11 | O36: 21
B37: CAPEX excluding purchases of 3G license | C37: 17 | D37: 13.199 | E37: 18 | F37: 42.591 | G37: 90.79 | H37: 27 | I37: 26 | J37: 25 | K37: 40 | L37: 118 | M37: 10 | N37: 11 | O37: 21
B38: - as % of revenue | C38: 0.085 | D38: 0.062 | E38: 0.077 | F38: 0.17 | G38: 0.101 | H38: 0.113 | I38: 0.105 | J38: 0.091 | K38: 0.136 | L38: 0.112 | M38: 0.035 | N38: 0.037 | O38: 0.064
B41: *Due to the rounding and translation practices, Russian rubles and functional currency margins, as well as other non-IFRS financial measures, may differ.
B43: **MTS owns a 49% stake in Mobile TeleSystems LLC, a mobile operator in Belarus, which is not consolidated

Sheet Group reconciliations
C2: 2018 | G2: 2019 | K2: 2020
B3: MTS Group | C3: Q1 | D3: Q2 | E3: Q3 | F3: Q4 | G3: Q1 | H3: Q2 | I3: Q3 | J3: Q4 | K3: Q1 | L3: Q2 | M3: Q3
B5: Net debt, amounts in millions of RUB, unless stated
B6: Current portion of LT debt | C6: 72544 | D6: 60187 | E6: 13940 | F6: 3256 | G6: 43027 | H6: 68812 | I6: 98672 | J6: 71828 | K6: 35338 | L6: 12122 | M6: 24032
B7: LT debt | C7: 218934 | D7: 250327 | E7: 362523 | F7: 365467 | G7: 344334 | H7: 308368 | I7: 277336 | J7: 271733 | K7: 388028 | L7: 396749 | M7: 391607
B8: Total debt | C8: 291478 | D8: 310514 | E8: 376463 | F8: 368723 | G8: 387361 | H8: 377180 | I8: 376008 | J8: 343561 | K8: 423366 | L8: 408871 | M8: =SUM(M6:M7) -> 415639
B9: Less:
B10: Cash and cash equivalents | C10: 56923 | D10: 57292 | E10: 101144 | F10: 84075 | G10: 66346 | H10: 51243 | I10: 52518 | J10: 38070 | K10: 101163 | L10: 98253 | M10: 82649
B11: ST investments | C11: 26354 | D11: 52970 | E11: 46354 | F11: 47863 | G11: 26588 | H11: 15165 | I11: 15700 | J11: 25618 | K11: 27886 | L11: 25994 | M11: 26547
B12: LT deposits | C12: 4 | D12: 130 | E12: 135 | F12: 139 | G12: 256 | H12: 126 | I12: 129 | J12: 124 | K12: 0 | L12: 0 | M12: 0
B13: SWAPs | C13: 2910 | D13: 4953 | E13: 1227 | F13: 1077.496353 | G13: 788 | H13: 1021 | I13: 625 | J13: 250 | K13: 4882 | L13: 0 | M13: 0
B14: Hedge | C14: 1150 | D14: 678 | E14: 725 | F14: 2796.641011 | G14: 974 | H14: -479 | I14: 59 | J14: -955 | K14: 4616 | L14: 2100 | M14: 4069
B15: Net debt | C15: 204137 | D15: 194491 | E15: 226878 | F15: 232771.8626 | G15: 292409 | H15: 310104 | I15: 306977 | J15: 280454 | K15: 284819 | L15: 282524 | M15: =M8-SUM(M10:M14) -> 302374
B18: Financial leverage ratios
B19: Shareholders' equity, RUB mln | C19: ='Statement of financial position'!C40 -> 135814 | D19: ='Statement of financial position'!D40 -> 112510 | E19: ='Statement of financial position'!E40 -> 72042 | F19: ='Statement of financial position'!F40 -> 77565 | G19: ='Statement of financial position'!G40 -> 70724 | H19: ='Statement of financial position'!H40 -> 40538 | I19: ='Statement of financial position'!I40 -> 47647 | J19: ='Statement of financial position'!J40 -> 36394 | K19: ='Statement of financial position'!K40 -> 57559 | L19: ='Statement of financial position'!L40 -> 30778 | M19: ='Statement of financial position'!M40 -> 30276
B20: Total assets, RUB mln | C20: ='Statement of financial position'!C35 -> 702071 | D20: ='Statement of financial position'!D35 -> 752192 | E20: ='Statement of financial position'!E35 -> 907496 | F20: ='Statement of financial position'!F35 -> 915993 | G20: ='Statement of financial position'!G35 -> 870371 | H20: ='Statement of financial position'!H35 -> 863617 | I20: ='Statement of financial position'!I35 -> 882259 | J20: ='Statement of financial position'!J35 -> 823910 | K20: ='Statement of financial position'!K35 -> 924201 | L20: ='Statement of financial position'!L35 -> 902444 | M20: ='Statement of financial position'!M35 -> 904325
B21: LTM adjusted OIBDA, RUB mln | C21: 190068 | D21: 199979 | E21: 210508 | F21: 220922 | G21: 224053 | H21: 226255 | I21: 229771 | J21: ='Statement of profit or loss'!L58 -> 210319 | K21: ='Statement of profit or loss'!M58+'Statement of profit or loss'!K58+'Statement of profit or loss'!J58+'Statement of profit or loss'!I58 -> 211137 | L21: ='Statement of profit or loss'!N58+'Statement of profit or loss'!M58+'Statement of profit or loss'!K58+'Statement of profit or loss'!J58 -> 211435 | M21: ='Statement of profit or loss'!K58+'Statement of profit or loss'!M58+'Statement of profit or loss'!N58+'Statement of profit or loss'!O58 -> 213287
B22: Net debt/assets | C22: =ROUND(C15/C20, 1) -> 0.3 | D22: 0.3 | E22: 0.3 | F22: =ROUND(F15/F20, 1) -> 0.3 | G22: =ROUND(G15/G20, 1) -> 0.3 | H22: 0.4 | I22: =ROUND(I15/I20, 1) -> 0.3 | J22: 0.3 | K22: =ROUND(K15/K20, 1) -> 0.3 | L22: 0.3 | M22: =ROUND(M15/M20, 1) -> 0.3
B23: Net debt/equity | C23: =ROUND(C15/C19, 1) -> 1.5 | D23: 1.7 | E23: 3.1 | F23: =ROUND(F15/F19, 1) -> 3 | G23: =ROUND(G15/G19, 1) -> 4.1 | H23: 7.6 | I23: =ROUND(I15/I19, 1) -> 6.4 | J23: 7.7 | K23: =ROUND(K15/K19, 1) -> 4.9 | L23: =ROUND(L15/L19, 1) -> 9.2 | M23: =ROUND(M15/M19, 1) -> 10
B24: Net debt/LTM adjusted OIBDA | C24: =ROUND(C15/C21, 1) -> 1.1 | D24: 1 | E24: 1.1 | F24: 1.1 | G24: =ROUND(G15/G21, 1) -> 1.3 | H24: 1.4 | I24: 1.3 | J24: 1.3 | K24: 1.3 | L24: 1.3 | M24: =ROUND(M15/M21, 1) -> 1.4
B27: Debt composition
B28: By type, %
B29: Credit facilities | C29: 0.558 | D29: 0.5743114746 | E29: 0.666937925 | F29: 0.6812399531 | G29: 0.6799220868 | H29: 0.6414373193 | I29: 0.5716633748 | J29: 0.4639180121 | K29: 0.5234414155 | L29: 0.4945831849 | M29: 0.4922792294
B30: Bonds | C30: 0.442 | D30: 0.4256885254 | E30: 0.333062075 | F30: 0.3187600469 | G30: 0.3200779132 | H30: 0.3585626807 | I30: 0.4283366252 | J30: 0.5360819879 | K30: 0.4765585845 | L30: 0.5054168151 | M30: 0.5077207706
B31: Syndicated loan
B32: By currency, %
B33: RUB | C33: 0.847683133 | D33: 0.8481901757 | E33: 0.9099878852 | F33: 0.9151567824 | G33: 0.9247839634 | H33: 0.9247768573 | I33: 0.9229801448 | J33: 0.919053096 | K33: 0.976 | L33: 0.975 | M33: 0.967
B34: USD | C34: 0.1522119894 | D34: 0.1517078335 | E34: 0.08994529544 | F34: 0.08478323994 | G34: 0.07517314239 | H34: 0.07518978709 | I34: 0.07699306594 | J34: 0.080946903 | K34: 0.024 | L34: 0.025 | M34: 0.033
B35: EUR | C35: 0 | D35: 0 | E35: 0 | F35: 0 | G35: 0 | H35: 0 | I35: 0 | J35: 0 | K35: 0 | L35: 0 | M35: 0
B38: Free cash flow, amounts in millions of RUB
B39: Net cash provided by operating activities | C39: ='Statement of cash flows'!C43 -> 35695 | D39: ='Statement of cash flows'!D43 -> 70062 | E39: ='Statement of cash flows'!E43 -> 110221 | F39: ='Statement of cash flows'!F43 -> 154390 | G39: ='Statement of cash flows'!G43 -> -16093 | H39: ='Statement of cash flows'!H43 -> 4859 | I39: ='Statement of cash flows'!I43 -> 70252 | J39: ='Statement of cash flows'!L43 -> 106652 | K39: ='Statement of cash flows'!M43 -> 39504 | L39: ='Statement of cash flows'!N43 -> 64567 | M39: ='Statement of cash flows'!O43 -> 109127
B40: Less:
B41: Purchases of property, plant and equipment | C41: ='Statement of cash flows'!C49 -> -13096 | D41: ='Statement of cash flows'!D49 -> -27753 | E41: ='Statement of cash flows'!E49 -> -44660 | F41: ='Statement of cash flows'!F49 -> -64731 | G41: ='Statement of cash flows'!G49 -> -12457 | H41: ='Statement of cash flows'!H49 -> -27513 | I41: ='Statement of cash flows'!I49 -> -45000 | J41: ='Statement of cash flows'!L49 -> -68465 | K41: ='Statement of cash flows'!M49 -> -14361 | L41: ='Statement of cash flows'!N49 -> -28053 | M41: ='Statement of cash flows'!O49 -> -44588
B42: Purchases of other intangible assets, excluding purchases of 3G, 4G license in Ukraine and Russia and cost to obtain contracts | C42: ='Statement of cash flows'!C50 -> -3574 | D42: ='Statement of cash flows'!D50 -> -6484 | E42: ='Statement of cash flows'!E50 -> -10758 | F42: ='Statement of cash flows'!F50 -> -21751 | G42: ='Statement of cash flows'!G50 -> -4157 | H42: ='Statement of cash flows'!H50 -> -11781 | I42: ='Statement of cash flows'!I50 -> -16087 | J42: ='Statement of cash flows'!L50 -> -23016 | K42: ='Statement of cash flows'!M50 -> -5844 | L42: ='Statement of cash flows'!N50 -> -12757 | M42: ='Statement of cash flows'!O50 -> -19594
B43: Cost to obtain and fulfill contracts | C43: ='Statement of cash flows'!C51 -> -1099 | D43: ='Statement of cash flows'!D51 -> -2085 | E43: ='Statement of cash flows'!E51 -> -3524 | F43: ='Statement of cash flows'!F51 -> -4764 | G43: ='Statement of cash flows'!G51 -> -1093 | H43: ='Statement of cash flows'!H51 -> -2307 | I43: ='Statement of cash flows'!I51 -> -3692 | J43: ='Statement of cash flows'!L51 -> -4651 | K43: ='Statement of cash flows'!M51 -> -1188 | L43: ='Statement of cash flows'!N51 -> -2337 | M43: ='Statement of cash flows'!O51 -> -3745
B44: Purchase of Avantage | E44: ='Statement of cash flows'!E53 -> -7559 | F44: ='Statement of cash flows'!F53 -> -7559 | G44: ='Statement of cash flows'!G53 -> 0 | H44: ='Statement of cash flows'!H53 -> 0 | I44: ='Statement of cash flows'!I53 -> 0 | J44: ='Statement of cash flows'!L53 -> 0 | K44: ='Statement of cash flows'!M53 -> 0 | L44: ='Statement of cash flows'!N53 -> -196 | M44: ='Statement of cash flows'!O53 -> -196
B45: Proceeds from sale of property, plant and equipment | C45: ='Statement of cash flows'!C54 -> 442 | D45: ='Statement of cash flows'!D54 -> 2289 | E45: ='Statement of cash flows'!E54 -> 3924 | F45: ='Statement of cash flows'!F54 -> 5905 | G45: ='Statement of cash flows'!G54 -> 1040 | H45: ='Statement of cash flows'!H54 -> 2903 | I45: ='Statement of cash flows'!I54 -> 5067 | J45: ='Statement of cash flows'!L54 -> 6536 | K45: ='Statement of cash flows'!M54 -> 782 | L45: ='Statement of cash flows'!N54 -> 2504 | M45: ='Statement of cash flows'!O54 -> 4897
B46: Proceeds from sale of subsidiaries | F46: ='Statement of cash flows'!F59 -> 619 | G46: ='Statement of cash flows'!G59 -> 0 | H46: ='Statement of cash flows'!H59 -> 0 | I46: ='Statement of cash flows'!I59 -> 0 | J46: ='Statement of cash flows'!L59 -> 37386 | K46: ='Statement of cash flows'!M59 -> 0 | L46: ='Statement of cash flows'!N59 -> 0 | M46: ='Statement of cash flows'!O59 -> 2998
B47: Proceeds from sale of associates | F47: ='Statement of cash flows'!F60 -> 0 | G47: ='Statement of cash flows'!G60 -> 3000 | H47: ='Statement of cash flows'!H60 -> 3000 | I47: ='Statement of cash flows'!I60 -> 3067 | J47: ='Statement of cash flows'!L60 -> 3067 | K47: ='Statement of cash flows'!M60 -> 0 | L47: ='Statement of cash flows'!N60 -> 2450 | M47: ='Statement of cash flows'!O60 -> 2450
B48: Investments in associates | C48: ='Statement of cash flows'!C57 -> -1158 | D48: ='Statement of cash flows'!D57 -> -2101 | E48: ='Statement of cash flows'!E57 -> -3871 | F48: ='Statement of cash flows'!F57 -> -3871 | G48: ='Statement of cash flows'!G57 -> 0 | H48: ='Statement of cash flows'!H57 -> 0 | I48: ='Statement of cash flows'!I57 -> 0 | J48: ='Statement of cash flows'!L57 -> -75 | K48: ='Statement of cash flows'!M57 -> -1415 | L48: ='Statement of cash flows'!N57 -> -1415 | M48: ='Statement of cash flows'!O57 -> -1460
B49: Acquisition of subsidiaries, net of cash acquired | C49: ='Statement of cash flows'!C48 -> -3286 | D49: ='Statement of cash flows'!D48 -> -3093 | E49: ='Statement of cash flows'!E48 -> -3458 | F49: ='Statement of cash flows'!F48 -> -3444 | G49: ='Statement of cash flows'!G48 -> -1639 | H49: ='Statement of cash flows'!H48 -> -2030 | I49: ='Statement of cash flows'!I48 -> -2052 | J49: ='Statement of cash flows'!L48 -> -2052 | K49: ='Statement of cash flows'!M48 -> 0 | L49: ='Statement of cash flows'!N48 -> 69 | M49: ='Statement of cash flows'!O48 -> -262
B50: Free cash flow | C50: =SUM(C39:C49) -> 13924 | D50: 30835 | E50: 40315 | F50: =SUM(F39:F49) -> 54794 | G50: =SUM(G39:G49) -> -31399 | H50: -32869 | I50: =SUM(I39:I49) -> 11555 | J50: 55382 | K50: =SUM(K39:K49) -> 17478 | L50: 24832 | M50: =SUM(M39:M49) -> 49627

Sheet Debt repayment schedule
B2: As of September 30, 2020 | C2: Q4 2020 | D2: 2021 | E2: 2022 | F2: 2023 | G2: 2024 | H2: Thereafter
B3: MTS Group
B5: Debt repayments, RUB bln | C5: 0.9 | D5: 23.5 | E5: 52.7 | F5: 60.8 | G5: 110.7 | H5: 167
B7: Maturities of major publicly traded debt instruments*
B8: 2023 Eurobond, USD mln*** | F8: 500
B10: *Amounts before discounts
B11: *** MTS currently holds USD 51.7 mln worth of 2023 Eurobonds on its balance sheet

Sheet Ave Forex Rates
B2: MTS Group | D2: 2018 | I2: 2019 | N2: 2020
B3: Average Forex rates per country | D3: Q1 | E3: Q2 | F3: Q3 | G3: Q4 | H3: Full year | I3: Q1 | J3: Q2 | K3: Q3 | L3: Q4 | M3: Full year | N3: Q1 | O3: Q2 | P3: Q3
B5: Russia | C5: RUB/USD | D5: 56.88 | E5: 61.8 | F5: 65.5 | G5: 66.5 | H5: 62.71 | I5: 66.13 | J5: 64.56 | K5: 64.57 | L5: 63.72 | M5: 64.74 | N5: 66.38 | O5: 72.36 | P5: 73.56
B6: Ukraine | C6: UAH/RUB | D6: 0.48 | E6: 0.42 | F6: 0.42 | G6: 0.42 | H6: 0.44 | I6: 0.41 | J6: 0.41 | K6: 0.39 | L6: 0.38 | M6: 0.4 | N6: 0.38 | O6: 0.37 | P6: 0.38
B7: Turkmenistan | C7: TMT/RUB | D7: 0.06 | E7: 0.057 | F7: 0.05 | G7: 0.05 | H7: 0.06 | I7: 0.05 | J7: 0.05 | K7: 0.054 | L7: 0.055 | M7: 0.054 | N7: 0.053 | O7: 0.048 | P7: 0.048
B8: Armenia | C8: AMD/RUB | D8: 8.47 | E8: 7.82 | F8: 7.37 | G8: 7.3 | H8: 7.74 | I8: 7.37 | J8: 7.45 | K8: 7.38 | L8: 7.49 | M8: 7.42 | N8: 7.31 | O8: 6.7 | P8: 6.61
B9: Belarus | C9: BYN/RUB | D9: 0.03 | E9: 0.03 | F9: 0.03 | G9: 0.03 | H9: 0.03 | I9: 0.03 | J9: 0.03 | K9: 0.03 | L9: 0.03 | M9: 0.03 | N9: 0.03 | O9: 0.03 | P9: 0.03

Sheet Glossary
G2: Glossary
